Cogmind - Beta 12 @@@ ROGUE MODE // 2023.07.01 @ 00:00:28 Player: lyrabold Result: Destroyed 0b10! Performance ------------- Evolutions (9) 4500 Regions Visited (33) 6600 Robots Destroyed (512) 2560 Value Destroyed (25771) 25771 Prototype IDs (103) 2060 Alien Tech Used (4) 800 Bonus (23073) 23073 TOTAL SCORE: 65364 Bonus ------- High Alert Combat Kills 3806 Follower Combat Kills 3380 Entered Garrisons 200 Network Hubs Disabled 200 Aligned with FarCom 300 Met Data Miner 300 Destroyed Z-Imprinter 1000 Triggered Deep Caves Wall 500 Exposed GOLEM Chamber 500 Met Zhirov 300 Met Warlord at Base 500 MAIN.C Attacked Warlord 500 Warlord Defense Kills 1072 Built Enhanced Grunts 300 A7 Reached Mainframe 300 Met R17 at Cetus 500 Used Core Reset Matrix 3000 Scanned by Researcher 500 Met Sigix 2000 Escaped with Sigix 5000 Met Warlord at Command 2000 Win 3000 Friendly Fire -6085 Cogmind --------- Core Integrity 942/1600 Matter 209/300 Energy 870/1100 System Corruption 10% Temperature Hot (216) Movement Treading (305) Ox2 Location Tau Ceti IV Orbit Parts ------- > --- POWER (3) -------- Assembled Flux Generator > --- PROPULSION (4) --- Advanced Medium Treads Advanced Medium Treads Assembled Alloy Leg Assembled Alloy Leg > --- UTILITY (16) ----- Huge Storage Unit Assembled Biocell Array Advanced Terrain Scan Processor Assembled Combat Suite Improved Armor Integrity Analyzer Assembled Alloy Armor Active Cooling Armor Advanced Hacking Suite System Shield GOLEM Unit > --- WEAPON (3) ------- Core Cannon > --- INVENTORY (25) --- Light Quantum Reactor Light Quantum Reactor Advanced Medium Treads Experimental Energy Well (600) Experimental Energy Well (600) Zionite Biocell (600) Matter Compressor (250) Experimental EM Disruption Field Improved Hardlight Generator Advanced Force Field Improved Hacking Suite Improved System Shield Long-range Tractor Beam High-powered Transdimensional Reconstructor High-powered Transdimensional Reconstructor Compact HERF Cannon Omega Cannon Gamma Bomb Array Micro-nuke Launcher Sigix Containment Pod Peak State ------------ > --- POWER ------------ Assembled Flux Generator Quantum Reactor > --- PROPULSION ------- Advanced Heavy Siege Treads Assembled Alloy Leg Assembled Alloy Leg > --- UTILITY ---------- Assembled Nanovents 2N-1CE's Frost Array Huge Storage Unit Experimental Energy Well Assembled Biocell Array Advanced Signal Interpreter Advanced Terrain Scan Processor Assembled Combat Suite Quantum Capacitor Advanced Transmission Jammer Experimental Phase Shifter Assembled Alloy Armor Advanced Hacking Suite GOLEM Unit > --- WEAPON ----------- Compact HERF Cannon Assembled Focal Cannon Assembled Focal Cannon > --- INVENTORY -------- Light Quantum Reactor Advanced Medium Treads Experimental Energy Well Zionite Biocell Matter Compressor Experimental Sensor Array Active Cooling Armor Experimental EM Disruption Field Long-range Tractor Beam Transdimensional Reconstructor High-powered Transdimensional Reconstructor High-powered Transdimensional Reconstructor Compact HERF Cannon Core Cannon Omega Cannon Gamma Bomb Array Micro-nuke Launcher Sigix Containment Pod [Rating: 228] Favorites ----------- Power Assembled Flux Generator Engine Heavy Deuterium Engine Power Core Light Nuclear Core Reactor Assembled Flux Generator Propulsion Armored Treads Treads Armored Treads Leg Assembled Alloy Leg Hover Unit Aerolev Unit Flight Unit Improved VTOL Module Utility Huge Storage Unit Device Experimental Sensor Array Storage Huge Storage Unit Processor Improved Signal Interpreter Hackware Advanced Hacking Suite Protection Assembled Alloy Armor Weapon Assembled Focal Cannon Energy Gun Precision Beam Rifle Energy Cannon Assembled Focal Cannon Ballistic Gun Autogun Ballistic Cannon Heavy Hardcell Cannon Launcher Rocket Launcher Special Weapon Plasma Cutter Impact Weapon Power Maul Slashing Weapon Plasma Sword Special Melee Weapon Improved Datajack Build | -11 -10 -10 -10 -9 -8 -8 -7 -7 -7 -7 -6 -6 -6 -6 -6 -6 -5 -5 -5 -5 -5 -4 -4 -4 -4 -4 -4 -3 -3 -2 -2 -1 -1 ------- Run | Jun Mat Min Exi Min Mat Gar Fac Low Low Dat Pro Fac Low Low Zio Dee Pro Fac Upp Upp War Pro Fac Ext Cet Arc Hub Res Tes Res Qua Acc Com Slots Evolved 18 | . . . . . 4 . 2 . . . . 2 . . . . . 2 . . . . 2 . . . . 2 . 2 . 2 . Power 2 | . . . . . . . . . . . . 1 . . . . . . . . . . . . . . . 1 . . . . . Propulsion 2 | . . . . . 1 . 1 . . . . . . . . . . . . . . . . . . . . . . . . . . Utility 14 | . . . . . 3 . 1 . . . . 1 . . . . . 2 . . . . 2 . . . . 1 . 2 . 2 . Weapon . | . . . . . . . . . . . . . . . . . . . . . . . . . . . . . . . . . . Parts Attached 754 | 9 10 4 3 6 41 18 29 10 20 . 34 82 15 1 10 36 20 18 8 11 25 21 75 30 13 9 20 20 34 14 50 33 25 Power 32 | 1 1 . . 1 3 3 1 . . . . 3 . . 3 2 . . . . 1 . . . 2 . 3 2 . 2 1 3 . Engine 12 | 1 1 . . 1 3 2 1 . . . . 2 . . 1 . . . . . . . . . . . . . . . . . . Core 2 | . . . . . . 1 . . . . . . . . . . . . . . . . . . . . 1 . . . . . . Reactor 18 | . . . . . . . . . . . . 1 . . 2 2 . . . . 1 . . . 2 . 2 2 . 2 1 3 . Propulsion 63 | 4 3 2 2 . 13 3 9 . 1 . . 1 1 1 1 5 2 . . . 1 . 2 . 2 2 1 . 1 . 1 3 2 Treads 47 | 2 . . 2 . 11 3 9 . 1 . . 1 1 1 1 2 . . . . . . 2 . 2 2 1 . 1 . 1 2 2 Leg 13 | 2 3 2 . . . . . . . . . . . . . 3 2 . . . 1 . . . . . . . . . . . . Wheel . | . . . . . . . . . . . . . . . . . . . . . . . . . . . . . . . . . . Hover 2 | . . . . . 1 . . . . . . . . . . . . . . . . . . . . . . . . . . 1 . Flight 1 | . . . . . 1 . . . . . . . . . . . . . . . . . . . . . . . . . . . . Utility 530 | 2 1 2 1 5 11 6 11 7 10 . 22 55 9 . 3 20 18 18 8 11 22 21 73 23 9 7 12 18 30 9 44 24 18 Device 397 | 1 . 2 1 4 5 3 7 4 7 . 16 48 9 . 1 8 18 17 7 11 19 18 52 19 5 2 7 13 22 8 38 15 10 Storage 17 | 1 1 . . 1 1 . . . . . . . . . . 2 . . . . . 1 4 . . . 1 . 2 . . 1 2 Processor 17 | . . . . . . 1 1 1 . . . . . . . . . . . . 2 . 1 . . . . 3 2 . 3 1 2 Hackware 8 | . . . . . . . 1 . . . . 1 . . . . . . . . . . 1 . . 1 . 2 . . . 2 . Protection 91 | . . . . . 5 2 2 2 3 . 6 6 . . 2 10 . 1 1 . 1 2 15 4 4 4 4 . 4 1 3 5 4 Artifact . | . . . . . . . . . . . . . . . . . . . . . . . . . . . . . . . . . . Weapon 129 | 2 5 . . . 14 6 8 3 9 . 12 23 5 . 3 9 . . . . 1 . . 7 . . 4 . 3 3 4 3 5 Energy Gun 34 | . 3 . . . 1 . 5 1 6 . 8 9 . . . . . . . . . . . . . . . . 1 . . . . Energy Cannon 30 | . . . . . 6 3 2 . . . 2 5 . . . 3 . . . . . . . . . . . . 1 1 2 2 3 Ballistic Gun 9 | 2 1 . . . 5 . . . . . 1 . . . . . . . . . . . . . . . . . . . . . . Ballistic Cannon 19 | . . . . . . . . . . . . 5 3 . 1 2 . . . . . . . 4 . . 3 . 1 . . . . Launcher 22 | . . . . . 2 2 1 1 3 . . 1 2 . . 2 . . . . . . . . . . 1 . . 2 2 1 2 Special Weapon 4 | . 1 . . . . . . . . . . . . . . . . . . . . . . 3 . . . . . . . . . Impact Weapon 5 | . . . . . . 1 . 1 . . 1 1 . . 1 . . . . . . . . . . . . . . . . . . Slashing Weapon 5 | . . . . . . . . . . . . 1 . . 1 2 . . . . 1 . . . . . . . . . . . . Piercing Weapon . | . . . . . . . . . . . . . . . . . . . . . . . . . . . . . . . . . . Special Melee Weapon 1 | . . . . . . . . . . . . 1 . . . . . . . . . . . . . . . . . . . . . Unidentified Prototypes 51 | . 1 . . 1 5 . 3 . 1 . . 10 . . . 8 1 1 . . 7 . . . 4 . . . 3 . 4 1 1 Corrupted Parts 1 | . . . . . . . . . . . . . . . . . . . . . . . . . . . 1 . . . . . . System Corruption 3 | . . . . . . . . . . . . . . . . . . . . . . . . . . . 3 . . . . . . Parts Lost 56 | . . . . . 10 7 . . . . . . . . . 10 . . . . . . . 2 . . 6 . 4 . 1 11 5 Power 8 | . . . . . . 2 . . . . . . . . . 2 . . . . . . . . . . 1 . . . 1 1 1 Propulsion 10 | . . . . . 3 3 . . . . . . . . . 2 . . . . . . . . . . . . 1 . . 1 . Utility 33 | . . . . . 6 2 . . . . . . . . . 6 . . . . . . . 2 . . 3 . 3 . . 8 3 Weapon 5 | . . . . . 1 . . . . . . . . . . . . . . . . . . . . . 2 . . . . 1 1 Highest Loss Streak 10 | . . . . . 5 3 . . . . . . . . . 10 . . . . . . . 2 . . 6 . 3 . 1 6 5 To Critical Strikes 4 | . . . . . . . . . . . . . . . . . . . . . . . . . . . . . 1 . . 2 1 Average Slot Usage (%) 87 | . 100 100 99 100 95 99 99 100 100 100 100 95 86 80 77 79 86 87 88 88 87 87 85 79 80 61 81 77 79 76 78 80 79 Engine 3 | . 14 14 14 14 9 5 7 7 7 7 7 12 6 . . . . . . . . . . . . . . . . . . . . Reactor 4 | . . . . . . . . . . . . . 6 6 5 10 6 5 5 5 5 5 5 5 5 5 5 9 9 8 8 6 7 Treads 14 | . . . 16 28 26 26 30 30 30 30 30 26 26 26 26 21 . . . . . . 4 10 10 3 10 9 8 8 8 4 3 Leg 6 | . 28 28 11 . . . . . . . . . . . . 3 25 22 22 22 22 22 11 . . . . . . . . 4 7 Device 15 | . 14 14 13 14 17 12 14 15 14 15 14 16 19 20 13 7 11 12 11 11 11 11 18 19 15 8 18 17 20 20 25 25 14 Storage 8 | . 14 14 14 14 9 9 7 7 7 7 7 6 6 6 6 6 12 11 11 11 11 11 9 10 10 10 10 9 9 8 8 7 7 Processor 9 | . . . . . . 8 15 15 15 15 15 13 13 13 13 13 12 11 11 11 11 11 10 10 10 10 10 9 6 8 8 7 9 Protection 7 | . . . . . 14 14 7 7 7 7 7 5 . . 5 7 . 8 10 11 10 10 5 9 14 10 13 6 9 10 6 6 8 Energy Gun 5 | . 27 28 28 28 3 . 10 13 14 15 14 10 . . . . . . . . . . . . . . . . . . . . . Energy Cannon 7 | . . . . . 8 17 4 . . . . . . . . 3 17 16 16 16 15 16 15 12 14 15 10 8 12 11 11 10 10 Naked Turns . | . . . . . . . . . . . . . . . . . . . . . . . . . . . . . . . . . . Heaviest Build 236 | 15 32 32 32 52 108 106 103 104 108 100 117 146 154 146 145 153 170 180 180 180 189 189 185 191 198 192 186 212 223 236 211 231 232 Greatest Support 180 | 40 20 20 40 40 60 60 80 80 82 82 82 90 90 90 90 116 116 116 116 116 118 118 180 180 160 160 160 160 160 180 160 160 60 Greatest Overweight (x) 55 | . 1 1 1 1 1 1 1 1 1 1 1 1 1 1 1 2 1 1 1 1 1 1 2 1 2 55 1 1 1 1 1 6 3 Average Overweight (x) 1 | . . 1 . . . 1 1 1 1 1 1 1 1 1 . 1 1 1 1 1 1 1 1 . . 8 . 1 1 1 1 2 2 Largest Inventory Capacity 25 | 8 15 15 15 20 25 25 25 25 25 25 25 25 25 25 25 25 25 25 25 25 25 25 25 25 25 25 25 25 25 25 25 25 25 Average Capacity 23 | 7 14 15 15 18 23 25 25 25 25 25 25 25 25 25 25 25 25 25 25 25 25 25 24 25 25 25 25 25 25 25 25 25 25 Most Carried 25 | 6 15 15 15 15 25 25 25 25 25 25 25 25 25 25 25 25 25 25 25 25 25 25 25 25 25 25 25 25 25 25 25 25 25 Average Carried 23 | 3 12 15 14 14 22 24 24 24 24 25 25 24 24 23 22 22 24 24 24 25 24 24 24 24 24 24 24 24 24 23 24 23 24 Final Capacity 25 | 8 15 15 15 20 25 25 25 25 25 25 25 25 25 25 25 25 25 25 25 25 25 25 25 25 25 25 25 25 25 25 25 25 25 Final Carried 25 | 5 15 15 14 15 25 25 25 25 25 25 25 25 24 23 23 25 25 24 25 25 25 25 25 25 25 25 23 25 24 24 25 21 22 Class Distribution -------------------- 39% | Mutant 17% | Golem 12% | Scavenger-Mutant 11% | Skirmisher 4% | Scavenger-Golem 3% | Hacker-Mutant Dominant Class ---------------- Mutant | -10/Materials Scavenger-Mutant | -10/Mines Mutant | -10/Exiles Mutant | -9/Mines Scavenger-Mutant | -8/Materials Scavenger-Mutant | -8/Garrison Scavenger-Mutant | -7/Factory Skirmisher | -7/Lower Caves Skirmisher | -7/Lower Caves Skirmisher | -7/Data Miner Skirmisher | -6/Proximity Caves Infiltrator-Skirmisher | -6/Factory Mutant | -6/Lower Caves Mutant | -6/Lower Caves Mutant | -6/Zion Mutant | -6/Deep Caves Scavenger-Golem | -5/Proximity Caves Golem | -5/Factory Golem | -5/Upper Caves Scavenger-Golem | -5/Upper Caves Commander-Golem | -5/Warlord Golem | -4/Proximity Caves Golem | -4/Factory Golem | -4/Extension Commander-Golem | -4/Cetus Mutant | -4/Archives Scavenger-Gunner | -4/Hub_04(d) Scavenger-Mutant | -3/Research Scavenger-Skirmisher | -3/Testing Mutant | -2/Research Mutant | -2/Quarantine Mutant | -1/Access Hacker-Mutant | -1/Command Resources | -11 -10 -10 -10 -9 -8 -8 -7 -7 -7 -7 -6 -6 -6 -6 -6 -6 -5 -5 -5 -5 -5 -4 -4 -4 -4 -4 -4 -3 -3 -2 -2 -1 -1 ----------- Run | Jun Mat Min Exi Min Mat Gar Fac Low Low Dat Pro Fac Low Low Zio Dee Pro Fac Upp Upp War Pro Fac Ext Cet Arc Hub Res Tes Res Qua Acc Com Matter Collected 11213 | 363 147 40 40 100 974 225 307 80 288 . 371 1359 459 45 100 618 282 168 163 147 240 200 837 581 171 102 376 410 474 284 555 396 311 Remotely 2083 | . . . . . . . . . . . . 837 63 . . 195 . . . . . 10 59 120 . . 284 259 . . 172 . 84 Salvage Created 27085 | 229 958 155 . 148 1759 1002 915 258 461 . 488 1393 332 31 . 1057 664 408 151 287 311 585 1782 953 173 243 1494 895 1528 705 3027 2417 2276 Parts 1365 | 19 55 7 . 10 108 55 49 9 15 . 26 43 19 . . 21 24 22 11 10 8 20 112 44 19 18 68 58 89 44 161 98 123 Haulers Intercepted 18 | . 2 . . . 5 . 4 . 1 . . 3 . . . . . 1 . . . . 1 . . . . . . . . 1 . Recyclers Shooed 16 | 2 1 . . . 3 . 3 . . . . 5 . . . . . . . . . . . . . . . . 2 . . . . Parts Field Recycled . | . . . . . . . . . . . . . . . . . . . . . . . . . . . . . . . . . . Retrieved Matter . | . . . . . . . . . . . . . . . . . . . . . . . . . . . . . . . . . . Parts Self-Destructed 131 | . . . . . . . . 17 15 . 22 . 16 . 2 . 21 . 10 9 . 19 . . . . . . . . . . . Prevented 7 | . . . . . . . . . . . 3 . . . . . . . . 4 . . . . . . . . . . . . . Kills | -11 -10 -10 -10 -9 -8 -8 -7 -7 -7 -7 -6 -6 -6 -6 -6 -6 -5 -5 -5 -5 -5 -4 -4 -4 -4 -4 -4 -3 -3 -2 -2 -1 -1 ------- Run | Jun Mat Min Exi Min Mat Gar Fac Low Low Dat Pro Fac Low Low Zio Dee Pro Fac Upp Upp War Pro Fac Ext Cet Arc Hub Res Tes Res Qua Acc Com Combat Hostiles Destroyed 414 | . 12 5 . 8 24 24 10 5 12 . 11 11 16 . . 48 9 5 2 5 7 12 27 11 1 . 18 8 17 15 39 22 30 Melee 1 | . . . . . . . . . . . . . . . . 1 . . . . . . . . . . . . . . . . . Guns 65 | . 12 5 . 8 13 . 7 4 3 . 9 4 . . . . . . . . . . . . . . . . . . . . . Cannons 213 | . . . . . 7 15 . . . . . 3 4 . . 5 9 5 2 5 7 12 27 11 1 . 13 8 17 6 29 13 14 AOE 97 | . . . . . 4 8 2 . 9 . . 2 12 . . 38 . . . . . . . . . . 5 . . 9 2 . 6 Classes Destroyed 32 | 3 5 1 . 1 5 . 2 . . . 2 . . 1 . 3 1 . . . 3 . . . . . 3 . . . 1 1 . Worker 19 | 2 . . . . 4 . 1 . . . . 3 . . . . . . . . . . . . . . 3 1 1 . 2 . 2 Builder 18 | . . . . . 2 . 1 . . . . . . . . . . . . . . . 4 1 . . 3 3 2 . . 2 . Tunneler 6 | 5 . . . 1 . . . . . . . . . . . . . . . . . . . . . . . . . . . . . Hauler 18 | . 2 . . . 5 . 4 . 1 . . 3 . . . . . 1 . . . . 1 . . . . . . . . 1 . Recycler 20 | 1 4 . . . 2 . 4 . . . . 5 . . . . . . . . . . . . . . 2 1 1 . . . . Carrier 1 | . . . . . . . . . . . . . . . . . . . . . . . . . . . 1 . . . . . . Minesweeper 4 | . . . . . . . . . . . 2 . . . . . 1 . 1 . . . . . . . . . . . . . . Operator 11 | . 2 . . . 2 . . . . . . . . . . . . 2 . . . . . 1 . . 1 . 2 . . . 1 Drone 2 | . . . . . . . . . . . 2 . . . . . . . . . . . . . . . . . . . . . . Watcher 37 | . 3 . . . 5 . 1 . . . . 2 . . . . . . . . . . 4 2 1 . 3 5 1 3 2 5 . Swarmer 78 | . 2 . . 7 4 7 . 1 4 . 3 . 8 . . . . . . 1 1 10 9 . 1 . . . . 10 4 . 6 Saboteur 1 | . . . . . . . . . . . . . . . . . . . . . . . . . . . 1 . . . . . . Grunt 116 | . 10 4 . . 11 14 5 4 8 . 6 4 5 . . . 3 2 . 2 1 . 1 . . . 7 3 7 . 5 10 4 Brawler 3 | . . . . . . . 1 . . . . . . . . . . . . . 1 . . . . . . . 1 . . . . Duelist 5 | . . . . . 1 1 . . . . . . 1 . . . . . . . . . . . . . . . 1 . . . 1 Protector 1 | . . . . . . . . . . . . . . . . . . . . . . . . . . . . . . . 1 . . Researcher 3 | . . . . . . . . . . . . . . . . . 1 . . . . . . . . . . . . . 2 . . Sentry 35 | . . . . . 4 2 1 . . . . 2 2 . . . 2 . . 1 . . 5 6 . . 2 2 . 1 . . 5 Demolisher 2 | . . . . 1 . . 1 . . . . . . . . . . . . . . . . . . . . . . . . . . Specialist 4 | . . . . . 2 . . . . . . . . . . . . . . . . . . . . . 2 . . . . . . Hunter 40 | . . . . . 2 . . . . . . 3 . . . . 3 . . 1 . 2 2 3 . . . 1 . 4 6 8 5 Programmer 64 | . . . . . . . 2 . . . . 2 . . . . 1 3 2 . 1 . 10 . . . 4 2 8 . 18 2 9 Heavy 2 | . . . . . . . . . . . . . . . . . . . . . . . . . . . 2 . . . . . . Q-Series 2 | . . . . . . . . . . . . . . . . . . . . . . . . . . . . . . . . 2 . Behemoth 3 | . . . . . . . . . . . . . . . . . . . . . 1 . . 2 . . . . . . . . . Lightning 3 | . . . . . . . . . . . . . . . . . . . . . . . . . . . . . . . 3 . . Striker 1 | . . . . . . . . . . . . . . . . . . . . . 1 . . . . . . . . . . . . Executioner 1 | . . . . . . . . . . . . . . . . . . . . . 1 . . . . . . . . . . . . Z-Light 3 | . . . . . . . . . . . . . . . . 3 . . . . . . . . . . . . . . . . . Decomposer 1 | . . . . . . . . . . . . . . . . . . . 1 . . . . . . . . . . . . . . Packrat 2 | . . . . . . . . . . . . . . . . . . . . . . 2 . . . . . . . . . . . Samaritan 1 | . . . . . . . . . . . . . . 1 . . . . . . . . . . . . . . . . . . . Assembler 2 | . . . . . . . . . . . . . . . . 2 . . . . . . . . . . . . . . . . . Assembled 42 | . . 1 . . . . . . . . . . . . . 41 . . . . . . . . . . . . . . . . . Golem 4 | . . . . . . . . . . . . . . . . 4 . . . . . . . . . . . . . . . . . Wasp 1 | . . . . . . . . . . . . . . . . . . . . . . . . . . . . . . . 1 . . Thug 1 | . . . . . . . . . . . . . . . . 1 . . . . . . . . . . . . . . . . . Commander 1 | . . . . . . . . . . . . . . . . . . . . . . . . . . . . . . . 1 . . Best Kill Streak 40 | 6 5 2 . 4 6 5 6 4 5 . 6 6 11 . . 40 4 3 2 2 2 5 6 3 1 . 18 4 5 6 6 8 6 Combat Bots Only 39 | . 3 2 . 4 5 5 3 4 5 . 6 2 11 . . 39 4 2 2 2 2 5 6 3 1 . 12 3 5 5 6 5 6 Max Kills in Single Turn 8 | 1 1 1 . 1 4 3 2 1 3 . 1 3 3 1 . 8 1 1 1 1 2 2 2 1 1 . 7 2 1 3 2 1 4 Gunslinging 1 | . . . . . 1 . . . . . . . . . . . . . . . . . . . . . . . . . . . . Exploded 8 | . . . . . 3 3 2 . 3 . . 2 3 . . 8 . . . . . . . . . . 3 . . 3 1 . 4 Melee 1 | . . . . . . . . . . . . . . . . 1 . . . . . . . . . . . . . . . . . Uniques/NPCs Destroyed 3 | . . . . . . . . . . . . . . . . 1 . . . . . . . . 2 . . . . . . . . Z-Imprinter (-6/Deep Caves) Revision 17 (-4/Cetus) A7 (-4/Cetus) Combat | -11 -10 -10 -10 -9 -8 -8 -7 -7 -7 -7 -6 -6 -6 -6 -6 -6 -5 -5 -5 -5 -5 -4 -4 -4 -4 -4 -4 -3 -3 -2 -2 -1 -1 -------- Run | Jun Mat Min Exi Min Mat Gar Fac Low Low Dat Pro Fac Low Low Zio Dee Pro Fac Upp Upp War Pro Fac Ext Cet Arc Hub Res Tes Res Qua Acc Com Damage Taken 28545 | . 274 116 . 347 1560 810 389 283 304 . 547 880 866 . . 3126 841 298 68 163 275 372 1076 1852 22 256 3948 588 1347 853 1564 2333 3187 Core 2131 | . 71 12 . 61 188 60 47 14 . . 37 12 24 . . 255 46 17 . . 34 32 111 61 . 83 125 51 88 96 138 167 301 Absorbed by Shields 4834 | . . . . . . . . . . . . . . . . . . . . . 186 133 70 203 21 . . 213 416 72 1292 1324 904 Reduced by Siege Mode 926 | . . . . . . . . . . . . . . . . . . . . . . . 62 432 . . 263 21 42 . 59 30 17 Redirected to Shielding 264 | . . . . . . . . . . . . . . . . 145 . . . . . . . . . . . . . . 28 73 18 Regen/Repaired (Parts) 1293 | . . . . . . . . . . . . 236 . . . . . . . . 102 . . . 18 107 129 327 137 139 98 . . Core Remaining (%) 72 | 100 . . . 42 . 54 . . . . 86 . . . . . 60 . . . . 91 . . . . 66 . 89 . 83 . 58 Volleys Fired 1518 | 20 44 12 2 15 123 64 48 16 20 . 43 59 26 3 . 62 30 20 8 6 27 27 104 58 20 34 29 62 70 38 196 136 96 Largest 3 | 2 2 2 1 2 2 2 2 2 2 . 2 2 2 1 . 2 3 3 3 3 3 3 3 3 3 1 3 3 3 3 1 2 3 Hottest 325 | 40 112 112 56 112 136 136 136 122 122 . 150 150 132 80 . 109 75 75 75 75 75 75 75 116 75 25 116 105 125 94 94 94 325 Shots Fired 2542 | 40 86 24 2 30 242 113 94 32 32 . 73 99 29 4 . 67 88 53 19 19 57 69 211 116 56 34 59 117 133 74 197 139 134 Gun 603 | 40 84 24 2 30 161 . 83 32 24 . 67 56 . . . . . . . . . . . . . . . . . . . . . Cannon 1865 | . . . . . 77 108 9 . . . 6 41 20 4 . 58 88 53 19 19 57 69 211 107 56 34 54 117 133 65 193 137 130 Launcher 63 | . . . . . 4 5 2 . 8 . . 2 9 . . 9 . . . . . . . . . . 5 . . 9 4 2 4 Special 11 | . 2 . . . . . . . . . . . . . . . . . . . . . . 9 . . . . . . . . . Kinetic 315 | 40 . . . . 143 . . . . . 13 29 20 4 . 19 . . . . . . . 12 . . 19 12 4 . . . . Thermal 1878 | . 86 24 2 30 95 108 92 32 24 . 54 56 . . . 4 88 53 19 19 57 69 211 104 56 34 35 105 124 64 130 31 72 Explosive 55 | . . . . . 4 5 2 . 8 . . 2 9 . . 9 . . . . . . . . . . 5 . . 9 1 . 1 Electromagnetic 294 | . . . . . . . . . . . 6 12 . . . 35 . . . . . . . . . . . . 5 1 66 108 61 Robot Hit Streak 71 | 7 12 14 . 5 18 8 21 31 15 . 21 19 5 3 . 14 16 19 11 8 17 12 70 71 15 22 30 27 18 7 13 14 22 Robot Miss Streak 7 | 2 3 3 . 3 7 2 2 1 1 . 2 4 1 1 . 4 2 2 1 1 2 2 1 1 2 . 1 1 1 3 3 2 4 Penetration Max 2 | . . . . . . . . . . . . . . . . . . . . . . . . . . . . . . . . . 2 Secondary Targets 13 | . . 1 . 3 3 . 3 . . . 3 . . . . . . . . . . . . . . . . . . . . . . Max Gunslinging Chain 1 | . . 1 . 1 1 . 1 . . . 1 . . . . . . . . . . . . . . . . . . . . . . Capacitor 312 | . . . . . . . . . . . . . . . . . . . . . . . . . . . . . . 8 193 111 . Shots Hit Robots 1560 | 23 48 16 . 21 147 58 76 27 21 . 50 82 17 2 . 45 61 34 7 9 33 37 87 79 32 19 44 65 80 40 122 94 84 Core Hits 921 | 9 25 7 . 9 70 41 40 9 24 . 28 62 30 . . 89 19 9 4 6 10 13 44 29 13 9 46 28 36 36 68 47 61 Critical Kills 2 | . . . . . 1 1 . . . . . . . . . . . . . . . . . . . . . . . . . . . Critical Parts Destroyed 2 | . . . . . . . . . . . . . . . . . . . . . . . . . . . . . . . . . 2 Critical Strikes 49 | . 4 2 . . 1 1 11 2 2 . 5 6 2 . . . . . . . . . . 3 . . 1 . 2 . 3 1 3 Burn 28 | . 4 2 . . . . 11 2 2 . 5 2 . . . . . . . . . . . . . . . . . . . . . Meltdown 2 | . . . . . 1 1 . . . . . . . . . . . . . . . . . . . . . . . . . . . Destroy 2 | . . . . . . . . . . . . . . . . . . . . . . . . . . . . . . . . . 2 Blast 10 | . . . . . . . . . . . . 3 2 . . . . . . . . . . 3 . . 1 . 1 . . . . Corrupt 7 | . . . . . . . . . . . . 1 . . . . . . . . . . . . . . . . 1 . 3 1 1 Melee Attacks 51 | . . . . . . 3 . 24 . . 2 2 . . 6 1 . . . . 13 . . . . . . . . . . . . Impact 34 | . . . . . . 3 . 24 . . 2 1 . . 4 . . . . . . . . . . . . . . . . . . Slashing 16 | . . . . . . . . . . . . . . . 2 1 . . . . 13 . . . . . . . . . . . . Piercing . | . . . . . . . . . . . . . . . . . . . . . . . . . . . . . . . . . . Sneak Attacks 2 | . . . . . . . . . . . . 2 . . . . . . . . . . . . . . . . . . . . . Combat Hostiles . | . . . . . . . . . . . . . . . . . . . . . . . . . . . . . . . . . . Follow-up Attacks . | . . . . . . . . . . . . . . . . . . . . . . . . . . . . . . . . . . Damage Inflicted 68878 | 289 836 284 . 405 2930 1641 1595 456 1018 . 867 2764 1808 249 . 4612 2655 1655 374 396 1586 1784 4487 3886 1490 834 4359 3284 4045 2453 6624 4279 4933 Guns 7273 | 289 831 279 . 385 1615 . 1175 456 357 . 769 1117 . . . . . . . . . . . . . . . . . . . . . Cannons 51316 | . . . . . 1014 1193 142 . . . 98 1262 1000 192 . 1700 2655 1655 374 396 1586 1784 4376 3801 1490 834 2279 3277 4035 1630 6022 4123 4398 Explosions 9678 | . . . . . 279 448 244 . 661 . . 261 808 . . 2897 . . . . . . 19 . . . 2080 . . 823 558 122 478 Melee 72 | . . . . . . . . . . . . 72 . . . . . . . . . . . . . . . . . . . . . Ramming 459 | . 5 5 . 20 22 . 34 . . . . 52 . 57 . 15 . . . . . . 92 5 . . . 7 10 . 44 34 57 Kinetic 7458 | 289 . . . . 1412 . . . . . . 932 1000 192 . 857 . . . . . . . 713 . . 967 590 506 . . . . Thermal 42826 | . 831 279 . 385 1217 1193 1317 456 357 . 769 1117 . . . 93 2655 1655 374 396 1586 1784 4376 3168 1490 834 1312 2687 3390 1630 4028 790 2657 Explosive 8049 | . . . . . 279 448 244 . 661 . . 261 808 . . 2897 . . . . . . . . . . 1087 . . 823 405 . 136 Electromagnetic 10014 | . . . . . . . . . . . 98 330 . . . 750 . . . . . . 19 . . . 993 . 139 . 2147 3455 2083 Impact 72 | . . . . . . . . . . . . 72 . . . . . . . . . . . . . . . . . . . . . Slashing . | . . . . . . . . . . . . . . . . . . . . . . . . . . . . . . . . . . Piercing . | . . . . . . . . . . . . . . . . . . . . . . . . . . . . . . . . . . Highest Corruption 22 | . . . . . . . . . . . . 2 2 2 2 6 6 4 5 5 5 . 3 3 3 3 22 1 15 . 11 4 10 Average Corruption 4 | . . . . . . . . . . . . 2 2 2 2 5 6 3 4 5 5 . 2 3 3 3 10 1 6 . 7 2 8 Corruption Purged . | . . . . . . . . . . . . . . . . . . . . . . . . . . . . . . . . . . Corruption Blocked 45 | . . . . . . . . . . . . . . . . . . . . . . . . . . . . . . 5 40 . . Effects 395 | . . . . . . . . . . . . 2 20 5 1 20 42 7 26 20 2 . 24 34 12 15 19 8 39 . 29 11 59 Message Errors 99 | . . . . . . . . . . . . . 5 3 . 4 8 3 11 8 1 . 7 8 1 3 3 1 11 . 5 3 14 Matter Fused 95 | . . . . . . . . . . . . . 3 . . 5 15 1 2 1 . . 6 8 3 4 4 2 12 . 12 1 16 Heat Flow Errors 44 | . . . . . . . . . . . . 1 4 . . 1 6 . 4 2 . . 2 6 4 1 . . 2 . 3 1 7 Energy Discharges 47 | . . . . . . . . . . . . . 3 . 1 3 4 . 3 2 . . 3 7 2 1 5 1 2 . 2 1 7 Parts Rejected 2 | . . . . . . . . . . . . . 1 . . 1 . . . . . . . . . . . . . . . . . Parts Fused 8 | . . . . . . . . . . . . 1 1 . . . . . 1 1 . . 1 . . 1 . 1 . . . 1 . Data Loss (minor) 50 | . . . . . . . . . . . . . 2 . . 2 6 1 3 3 1 . 4 3 1 4 2 1 6 . 4 2 5 Data Loss (major) 17 | . . . . . . . . . . . . . . 1 . 2 1 1 . 1 . . . . 1 1 1 1 1 . 1 1 4 Misfires 12 | . . . . . . . . . . . . . . 1 . 1 2 . 1 1 . . . . . . 1 1 1 . 1 1 1 Alerts 8 | . . . . . . . . . . . . . . . . 1 . . 1 1 . . . 1 . . . . . . 1 . 3 Misdirections 1 | . . . . . . . . . . . . . . . . . . . . . . . . . . . . . . . . . 1 Weapon Failures 12 | . . . . . . . . . . . . . 1 . . . . 1 . . . . 1 1 . . 3 . 4 . . . 1 Overload Shots . | . . . . . . . . . . . . . . . . . . . . . . . . . . . . . . . . . . Overflow Damage 3133 | . . . . . 10 40 . . 11 . 7 108 142 141 . 220 153 250 52 . 157 163 217 36 . 64 137 163 438 44 341 122 117 Projectiles 2712 | . . . . . 7 38 . . . . 7 66 124 125 . 53 153 250 52 . 157 163 209 36 . 64 94 163 438 44 245 117 107 Explosions 345 | . . . . . 3 2 . . 11 . . . 18 . . 167 . . . . . . . . . . 43 . . . 96 . 5 Melee 76 | . . . . . . . . . . . . 42 . 16 . . . . . . . . 8 . . . . . . . . 5 5 Knockbacks 35 | . . . . 1 . . . . . . . 13 4 . . 8 . . . . . . 2 . . . 2 3 1 . 1 . . Impact 6 | . . . . 1 . . . . . . . 2 . . . . . . . . . . 2 . . . . . . . 1 . . Kinetic 24 | . . . . . . . . . . . . 9 4 . . 6 . . . . . . . . . . 2 2 1 . . . . Secondary 5 | . . . . . . . . . . . . 2 . . . 2 . . . . . . . . . . . 1 . . . . . Self-Inflicted Damage 445 | . . . . . . . . . . . . . 85 . . 59 . . . . . . . . . . 139 . . 42 120 . . Shots 9 | . . . . . . . . . . . . . 2 . . 2 . . . . . . . . . . 2 . . 1 2 . . Rammed 28 | . . . . 2 3 . 2 . . . . 2 . 4 . 4 . . . . . . . 1 . . . 2 2 . 3 2 1 Targets Rammed 43 | . 2 1 . 3 4 . 3 . . . . 2 . 4 . 5 . . . . . . 6 1 . . . 2 2 . 3 3 2 Kicked 11 | . 2 1 . . . . . . . . . . . . . . . . . . . . 6 . . . . . . . . 1 1 Crushed 4 | . . . . 1 1 . 1 . . . . . . . . 1 . . . . . . . . . . . . . . . . . Highest Temperature 386 | . 386 285 32 255 353 357 188 144 135 . 234 330 342 . . 238 258 4 261 226 . . 174 281 265 114 266 324 325 69 226 288 263 Average Temperature 77 | . 88 117 18 83 71 103 37 57 59 . 70 80 138 . . 49 110 4 93 91 . . 35 99 99 67 114 69 47 43 72 132 69 Received Heat Transfer 4447 | . 105 66 . . 486 396 54 153 135 . 264 162 258 . . 391 135 27 . 27 4 . 62 207 6 . 1048 114 154 . 63 76 54 Effects 7 | . 1 2 . . 3 . . . . . . . . . . . . . . . . . . . . . . . . . 1 . . Shutdowns 1 | . 1 . . . . . . . . . . . . . . . . . . . . . . . . . . . . . . . . Energy Bleed 1 | . . . . . . . . . . . . . . . . . . . . . . . . . . . . . . . 1 . . Interference 5 | . . 2 . . 3 . . . . . . . . . . . . . . . . . . . . . . . . . . . . Siege Activations 32 | . . . . . . . . . . . . . . . . . . . . . . . 5 4 . 1 1 3 2 . 7 6 3 Total Turns 516 | . . . . . . . . . . . . . . . . . . . . . . . 69 100 . 9 71 56 58 . 63 32 58 Longest Duration 71 | . . . . . . . . . . . . . . . . . . . . . . . 25 57 . 9 71 22 32 . 18 13 40 Robots Corrupted 37 | . . . . . . . . . . . . 2 . . . 4 . . . . . . . . . . 1 . 1 . 9 10 10 Combat Hostiles 34 | . . . . . . . . . . . . 2 . . . 4 . . . . . . . . . . . . 1 . 8 9 10 Parts Fried 98 | . . . . . . . . . . . 1 12 . . . 10 . . . 1 . . . . . . 7 . 3 . 14 32 18 Impact Corruptions 12 | . . . . . . . . . . . . 2 . 5 . . . . . . . . 1 . . . . 1 . . 1 1 1 Robots Melted 6 | . . . . . 1 1 . 1 . . 2 1 . . . . . . . . . . . . . . . . . . . . . Combat Hostiles 4 | . . . . . . 1 . 1 . . 2 . . . . . . . . . . . . . . . . . . . . . . Parts Melted 56 | . 6 1 . 1 2 3 7 4 1 . 2 8 . . . . 1 1 . . 2 3 3 2 . 1 . . 1 . 1 1 5 Heat Transferred 34788 | . 2072 740 . 814 2294 2146 3439 1147 925 . 1908 1299 . . . 50 1525 850 175 225 900 1000 2200 1792 551 450 725 1425 1775 900 1911 475 1075 Parts Sabotaged . | . . . . . . . . . . . . . . . . . . . . . . . . . . . . . . . . . . Parts Stolen . | . . . . . . . . . . . . . . . . . . . . . . . . . . . . . . . . . . Parts Stripped . | . . . . . . . . . . . . . . . . . . . . . . . . . . . . . . . . . . Power Chain Reactions 1 | . . . . . . . . . . . . . . . . . . . . . . . . . . . . . . . . . 1 Missiles Intercepted . | . . . . . . . . . . . . . . . . . . . . . . . . . . . . . . . . . . Alert | -11 -10 -10 -10 -9 -8 -8 -7 -7 -7 -7 -6 -6 -6 -6 -6 -6 -5 -5 -5 -5 -5 -4 -4 -4 -4 -4 -4 -3 -3 -2 -2 -1 -1 ------- Run | Jun Mat Min Exi Min Mat Gar Fac Low Low Dat Pro Fac Low Low Zio Dee Pro Fac Upp Upp War Pro Fac Ext Cet Arc Hub Res Tes Res Qua Acc Com Peak Influence 1258 | 40 249 92 . 194 457 1229 1191 . . . . 517 . . . . . 109 . . . . 759 553 1061 438 1258 775 580 858 980 793 1197 Initial 660 | . 26 42 . . . 297 644 . . . . 300 . . . . . . . . . . 43 354 274 362 113 660 424 252 425 566 453 Average 421 | 16 113 22 . 35 186 800 760 . . . . 208 . . . . . 31 . . . . 317 416 724 291 326 676 470 508 531 596 933 Maximum Alert Level 4 | . 1 . . . 2 4 4 . . . . 2 . . . . . . . . . . 3 2 4 2 4 3 2 3 3 3 4 Low Security (%) 31 | 100 95 100 . 100 47 . . . . . . 57 . . . . . 100 . . . . 52 . . 15 52 . . . . . . Level 1 17 | . 4 . . . 46 11 . . . . . 33 . . . . . . . . . . 10 44 8 53 10 . 11 40 30 . . Level 2 29 | . . . . . 5 17 29 . . . . 8 . . . . . . . . . . 18 55 33 30 30 66 88 15 50 82 16 Level 3 18 | . . . . . . 57 66 . . . . . . . . . . . . . . . 18 . 58 . . 33 . 44 19 17 54 Level 4 2 | . . . . . . 13 4 . . . . . . . . . . . . . . . . . . . 5 . . . . . 28 Level 5 . | . . . . . . . . . . . . . . . . . . . . . . . . . . . . . . . . . . High Security . | . . . . . . . . . . . . . . . . . . . . . . . . . . . . . . . . . . Max Security . | . . . . . . . . . . . . . . . . . . . . . . . . . . . . . . . . . . Squads Dispatched 79 | . 3 . . . 5 . 5 . . . 1 8 . . . . 1 4 . . . . 9 2 . . 7 4 4 . 9 5 12 Investigation 13 | . 3 . . . 1 . . . . . 1 1 . . . . 1 . . . . . 2 1 . . . 2 . . . . 1 Extermination 31 | . . . . . . . 2 . . . . 4 . . . . . 2 . . . . 5 . . . 1 1 2 . 5 2 7 Reinforcement 20 | . . . . . 4 . . . . . . 3 . . . . . 2 . . . . 1 1 . . 2 . . . 3 1 3 Assault 15 | . . . . . . . 3 . . . . . . . . . . . . . . . 1 . . . 4 1 2 . 1 2 1 Garrison . | . . . . . . . . . . . . . . . . . . . . . . . . . . . . . . . . . . Intercept . | . . . . . . . . . . . . . . . . . . . . . . . . . . . . . . . . . . Searches Triggered . | . . . . . . . . . . . . . . . . . . . . . . . . . . . . . . . . . . Data Miner Redirects 9 | . . . . . . . . . . . . 1 . . . . . . . . . . 2 1 . . 2 1 . . 1 . 1 Construction Impeded 3 | . . . . . 1 . . . . . . 1 . . . . . . . . . . . 1 . . . . . . . . . Haulers Reinforced 3 | . . . . . . . . . . . . 1 . . . . . 1 . . . . . . . . . . . . . 1 . Active Scanning Responses . | . . . . . . . . . . . . . . . . . . . . . . . . . . . . . . . . . . Cargo Convoy Interrupts 1 | . . . . . . . . . . . . 1 . . . . . . . . . . . . . . . . . . . . . Stealth | -11 -10 -10 -10 -9 -8 -8 -7 -7 -7 -7 -6 -6 -6 -6 -6 -6 -5 -5 -5 -5 -5 -4 -4 -4 -4 -4 -4 -3 -3 -2 -2 -1 -1 --------- Run | Jun Mat Min Exi Min Mat Gar Fac Low Low Dat Pro Fac Low Low Zio Dee Pro Fac Upp Upp War Pro Fac Ext Cet Arc Hub Res Tes Res Qua Acc Com Distress Signals 28 | . . 1 . . 3 . 4 . . . 1 1 . . . . . . . . 1 . 1 3 2 . . . 1 3 . . 7 Communications Jammed 118 | . . . . . . . . . . . . 37 . . . . 1 2 . . . . 2 . . . 9 13 . 18 24 12 . Distress Signals 114 | . . . . . . . . . . . . 37 . . . . 1 2 . . . . 2 . . . 9 13 . 18 20 12 . Times Spotted 657 | . 22 5 . 11 39 24 34 7 7 . 12 26 20 . . 55 9 9 2 5 54 15 34 22 17 . 28 16 24 18 47 36 59 Peak Tracking Total 39 | . 3 2 9 4 7 5 8 4 5 . 7 3 13 . . 39 3 2 2 1 17 5 6 5 7 . 8 3 5 4 5 5 11 Tactical Retreats 24 | . 1 . . . 2 . . 2 . . . . 2 . . 2 . . . . 1 3 2 1 . . 1 . . . 2 4 1 Traps | -11 -10 -10 -10 -9 -8 -8 -7 -7 -7 -7 -6 -6 -6 -6 -6 -6 -5 -5 -5 -5 -5 -4 -4 -4 -4 -4 -4 -3 -3 -2 -2 -1 -1 ------- Run | Jun Mat Min Exi Min Mat Gar Fac Low Low Dat Pro Fac Low Low Zio Dee Pro Fac Upp Upp War Pro Fac Ext Cet Arc Hub Res Tes Res Qua Acc Com Traps Triggered 16 | . . . . . 1 4 . . . . . 3 . . . . . . . . . . . 1 . . 1 . . . 3 1 2 Indirectly . | . . . . . . . . . . . . . . . . . . . . . . . . . . . . . . . . . . Trap Hack Attempts . | . . . . . . . . . . . . . . . . . . . . . . . . . . . . . . . . . . Triggered . | . . . . . . . . . . . . . . . . . . . . . . . . . . . . . . . . . . Disarmed . | . . . . . . . . . . . . . . . . . . . . . . . . . . . . . . . . . . Reprogrammed . | . . . . . . . . . . . . . . . . . . . . . . . . . . . . . . . . . . Reused 1 | . . . . . . . . . . . . 1 . . . . . . . . . . . . . . . . . . . . . Traps Extracted . | . . . . . . . . . . . . . . . . . . . . . . . . . . . . . . . . . . Installed 8 | . . . . . . . . 1 . . 5 1 1 . . . . . . . . . . . . . . . . . . . . Triggered 16 | . . . . . . . . . . . 2 4 . . . . . . . 1 4 . . 4 . . . . . . . 1 . Most Traps Carried 6 | . . . . . . 1 1 1 . . 6 6 5 4 4 4 6 6 6 6 6 6 6 6 6 6 6 6 6 6 6 . . Machines | -11 -10 -10 -10 -9 -8 -8 -7 -7 -7 -7 -6 -6 -6 -6 -6 -6 -5 -5 -5 -5 -5 -4 -4 -4 -4 -4 -4 -3 -3 -2 -2 -1 -1 ---------- Run | Jun Mat Min Exi Min Mat Gar Fac Low Low Dat Pro Fac Low Low Zio Dee Pro Fac Upp Upp War Pro Fac Ext Cet Arc Hub Res Tes Res Qua Acc Com Machines Disabled 100 | . 1 . 2 . 1 9 13 . . . 1 1 3 . . 1 2 . . . 3 1 4 5 2 3 22 . 8 7 6 1 4 Max in Single Turn 15 | . 1 . 1 . 1 1 . . . . . . 1 . . 1 1 . . . 1 1 2 1 1 1 15 . 2 1 2 1 2 Garrison Access 6 | . . . . . . . . . . . . . . . . . . . . . . . 2 . . . 1 . . 1 1 1 . Garrison Relay 4 | . . . . . . 4 . . . . . . . . . . . . . . . . . . . . . . . . . . . Phase Generator 1 | . . . . . . . . . . . . . . . . . . . . . . . . . . . . . . . . . 1 Network Hub 1 | . . . . . . . . . . . . . . . . . . . . . . . . . . . 1 . . . . . . Machines Repaired . | . . . . . . . . . . . . . . . . . . . . . . . . . . . . . . . . . . Machines Sabotaged . | . . . . . . . . . . . . . . . . . . . . . . . . . . . . . . . . . . Overloaded Fab Kills . | . . . . . . . . . . . . . . . . . . . . . . . . . . . . . . . . . . Hacking | -11 -10 -10 -10 -9 -8 -8 -7 -7 -7 -7 -6 -6 -6 -6 -6 -6 -5 -5 -5 -5 -5 -4 -4 -4 -4 -4 -4 -3 -3 -2 -2 -1 -1 --------- Run | Jun Mat Min Exi Min Mat Gar Fac Low Low Dat Pro Fac Low Low Zio Dee Pro Fac Upp Upp War Pro Fac Ext Cet Arc Hub Res Tes Res Qua Acc Com Machines Accessed 93 | . 10 . 1 . 5 2 4 1 1 3 1 8 2 . . . 1 3 . . 3 1 10 5 2 . 3 4 6 . 11 4 2 Terminals 59 | . 8 . . . 2 2 3 . . . 1 5 1 . . . 1 3 . . . . 4 5 2 . 2 3 5 . 8 2 2 Fabricators 7 | . . . . . . . . . . . . 2 . . . . . . . . . . 3 . . . . 1 . . . 1 . Repair Stations . | . . . . . . . . . . . . . . . . . . . . . . . . . . . . . . . . . . Recycling Units 4 | . 2 . . . . . 1 . . . . 1 . . . . . . . . . . . . . . . . . . . . . Scanalyzers 6 | . . . . . 2 . . . . . . . . . . . . . . . . . 1 . . . . . 1 . 2 . . Garrison Access 6 | . . . . . 1 . . . . . . . . . . . . . . . . . 2 . . . 1 . . . 1 1 . Total Hacks 246 | . 26 . 1 . 16 2 15 1 1 19 3 14 5 . . . 7 5 . . 9 1 26 13 3 . 8 12 17 . 26 12 4 Successful 124 | . 13 . 1 . 9 2 11 1 1 19 3 4 5 . . . 7 2 . . 9 1 13 2 2 . . 2 3 . 9 3 2 Failed 122 | . 13 . . . 7 . 4 . . . . 10 . . . . . 3 . . . . 13 11 1 . 8 10 14 . 17 9 2 Catastrophic 33 | . 2 . . . . . . . . . . 6 . . . . . . . . . . 1 2 1 . . 7 4 . 6 3 1 Database Lockouts . | . . . . . . . . . . . . . . . . . . . . . . . . . . . . . . . . . . Manual 68 | . 12 . 1 . 3 . 6 . . . . 3 . . 2 . . 1 . . 1 . 5 8 1 . 2 7 1 . 11 3 1 Terminals 160 | . 24 . . . 4 2 12 . . . 3 8 4 . . . 7 5 . . . . 10 13 3 . 6 10 16 . 21 8 4 Fabricators 16 | . . . . . . . . . . . . 5 . . . . . . . . . . 8 . . . . 2 . . . 1 . Repair Stations . | . . . . . . . . . . . . . . . . . . . . . . . . . . . . . . . . . . Recycling Units 6 | . 2 . . . . . 3 . . . . 1 . . . . . . . . . . . . . . . . . . . . . Scanalyzers 20 | . . . . . 11 . . . . . . . . . . . . . . . . . 5 . . . . . 1 . 3 . . Garrison Access 11 | . . . . . 1 . . . . . . . . . . . . . . . . . 3 . . . 2 . . . 2 3 . Terminal Hacks 90 | . 11 . 1 . . 2 8 1 1 19 3 1 5 . . . 7 2 . . 9 1 3 2 2 . . . 2 . 6 2 2 Record 29 | . . . . . . . . . . 2 3 . 4 . . . 7 . . . 9 1 . . 1 . . . . . 1 1 . Part Schematic 10 | . 1 . . . . . . . . 9 . . . . . . . . . . . . . . . . . . . . . . . Robot Schematic 5 | . . . . . . . . . . 5 . . . . . . . . . . . . . . . . . . . . . . . Robot Analysis 4 | . 4 . . . . . . . . . . . . . . . . . . . . . . . . . . . . . . . . Prototype ID Bank 9 | . 2 . . . . . 1 . . 3 . 1 . . . . . . . . . . 2 . . . . . . . . . . Open Door 5 | . . . . . . 1 . 1 1 . . . 1 . . . . . . . . . . . 1 . . . . . . . . Branch Access Points 3 | . . . . . . . 1 . . . . . . . . . . 1 . . . . 1 . . . . . . . . . . Emergency Access Points 2 | . . . . . . 1 . . . . . . . . . . . . . . . . . . . . . . . . . . 1 Terminal Index 2 | . 1 . . . . . 1 . . . . . . . . . . . . . . . . . . . . . . . . . . Alert Level 4 | . . . . . . . 1 . . . . . . . . . . . . . . . . . . . . . 1 . 1 1 . Unreport Threat 6 | . . . . . . . 2 . . . . . . . . . . . . . . . . 1 . . . . 1 . 2 . . Locate Traps 1 | . 1 . . . . . . . . . . . . . . . . . . . . . . . . . . . . . . . . Hauler Manifests 2 | . . . . . . . 1 . . . . . . . . . . . . . . . . 1 . . . . . . . . . Zone Layout 6 | . 2 . . . . . 1 . . . . . . . . . . 1 . . . . . . . . . . . . 2 . . EX-Prototype ID Bank 1 | . . . 1 . . . . . . . . . . . . . . . . . . . . . . . . . . . . . . Disengage Seal 1 | . . . . . . . . . . . . . . . . . . . . . . . . . . . . . . . . . 1 Fabricator Hacks 7 | . . . . . . . . . . . . 2 . . . . . . . . . . 3 . . . . 2 . . . . . Network Status 1 | . . . . . . . . . . . . . . . . . . . . . . . 1 . . . . . . . . . . Load Schematic 3 | . . . . . . . . . . . . 1 . . . . . . . . . . 1 . . . . 1 . . . . . Build 3 | . . . . . . . . . . . . 1 . . . . . . . . . . 1 . . . . 1 . . . . . Repair Station Hacks . | . . . . . . . . . . . . . . . . . . . . . . . . . . . . . . . . . . Recycling Unit Hacks 1 | . . . . . . . 1 . . . . . . . . . . . . . . . . . . . . . . . . . . Report Inventory 1 | . . . . . . . 1 . . . . . . . . . . . . . . . . . . . . . . . . . . Scanalyzer 11 | . . . . . 7 . . . . . . . . . . . . . . . . . 4 . . . . . . . . . . Insert Component 4 | . . . . . 2 . . . . . . . . . . . . . . . . . 2 . . . . . . . . . . Analyze 7 | . . . . . 5 . . . . . . . . . . . . . . . . . 2 . . . . . . . . . . Garrison Access Hacks 5 | . . . . . 1 . . . . . . . . . . . . . . . . . 2 . . . . . . . 1 1 . Unlock Access 1 | . . . . . 1 . . . . . . . . . . . . . . . . . . . . . . . . . . . . Seal Access 4 | . . . . . . . . . . . . . . . . . . . . . . . 2 . . . . . . . 1 1 . Unauthorized Hacks 10 | . 2 . . . 1 . 2 . . . . 1 . . . . . . . . . . 1 . . . . . 1 . 2 . . Terminals 4 | . . . . . 1 . 1 . . . . . . . . . . . . . . . . . . . . . . . 2 . . Assimilate 2 | . . . . . . . 1 . . . . . . . . . . . . . . . . . . . . . . . 1 . . Botnet 1 | . . . . . 1 . . . . . . . . . . . . . . . . . . . . . . . . . . . . Operators 1 | . . . . . . . . . . . . . . . . . . . . . . . . . . . . . . . 1 . . Fabricators 2 | . . . . . . . . . . . . 1 . . . . . . . . . . 1 . . . . . . . . . . Haulers 1 | . . . . . . . . . . . . 1 . . . . . . . . . . . . . . . . . . . . . Recompile 1 | . . . . . . . . . . . . . . . . . . . . . . . 1 . . . . . . . . . . Repair Stations . | . . . . . . . . . . . . . . . . . . . . . . . . . . . . . . . . . . Recycling Units 3 | . 2 . . . . . 1 . . . . . . . . . . . . . . . . . . . . . . . . . . Mask 1 | . . . . . . . 1 . . . . . . . . . . . . . . . . . . . . . . . . . . Tunnel 2 | . 2 . . . . . . . . . . . . . . . . . . . . . . . . . . . . . . . . Scanalyzers 1 | . . . . . . . . . . . . . . . . . . . . . . . . . . . . . 1 . . . . Researchers 1 | . . . . . . . . . . . . . . . . . . . . . . . . . . . . . 1 . . . . Garrison Access . | . . . . . . . . . . . . . . . . . . . . . . . . . . . . . . . . . . Data Cores Recovered 5 | . 2 . . . . . . . . . . . . . . . . 1 . . . . . 1 . . . . 1 . . . . Used 3 | . 2 . . . . . . . . . . . . . . . . 1 . . . . . . . . . . . . . . . Hacking Detections 68 | . 8 . . . 4 1 4 . . . 1 8 1 . . . 1 2 . . . . 7 5 . . 3 3 6 . 9 4 1 Full Trace Events 7 | . 1 . . . 1 . . . . . 1 . . . . . 1 . . . . . 1 . . . . 2 . . . . . Feedback Events 1 | . . . . . . . . . . . . . . . . . . . . . . . . . . . . 1 . . . . . Corruption 1 | . . . . . . . . . . . . . . . . . . . . . . . . . . . . 1 . . . . . Feedback Blocked . | . . . . . . . . . . . . . . . . . . . . . . . . . . . . . . . . . . Robot Schematics Acquired 9 | . . . . . . . . . . 5 . . . . 2 . . . . . . . . . . . . . . . 2 . . Robots Built . | . . . . . . . . . . . . . . . . . . . . . . . . . . . . . . . . . . Authchips . | . . . . . . . . . . . . . . . . . . . . . . . . . . . . . . . . . . Time . | . . . . . . . . . . . . . . . . . . . . . . . . . . . . . . . . . . Total Robot Build Rating . | . . . . . . . . . . . . . . . . . . . . . . . . . . . . . . . . . . Part Schematics Acquired 30 | . 1 . . . 2 . . . . 9 . . . . 14 . . . . . . . 1 . . . . . . . 3 . . Parts Built 5 | . . . . . . . . . . . . 1 . . . . . . . . . . 2 . . . . 2 . . . . . Authchips 2 | . . . . . . . . . . . . 1 . . . . . . . . . . . . . . . 1 . . . . . Time 171 | . . . . . . . . . . . . 56 . . . . . . . . . . 69 . . . . 46 . . . . . Total Part Build Rating 42 | . . . . . . . . . . . . 6 . . . . . . . . . . 18 . . . . 18 . . . . . Parts Repaired . | . . . . . . . . . . . . . . . . . . . . . . . . . . . . . . . . . . Time . | . . . . . . . . . . . . . . . . . . . . . . . . . . . . . . . . . . Parts Recycled . | . . . . . . . . . . . . . . . . . . . . . . . . . . . . . . . . . . Recycled Matter . | . . . . . . . . . . . . . . . . . . . . . . . . . . . . . . . . . . Retrieved Matter . | . . . . . . . . . . . . . . . . . . . . . . . . . . . . . . . . . . Retrieved Components . | . . . . . . . . . . . . . . . . . . . . . . . . . . . . . . . . . . Parts Scanalyzed 4 | . . . . . 2 . . . . . . . . . . . . . . . . . 2 . . . . . . . . . . Part Schematics Acquired 3 | . . . . . 2 . . . . . . . . . . . . . . . . . 1 . . . . . . . . . . Parts Damaged 1 | . . . . . 1 . . . . . . . . . . . . . . . . . . . . . . . . . . . . Bothacking | -11 -10 -10 -10 -9 -8 -8 -7 -7 -7 -7 -6 -6 -6 -6 -6 -6 -5 -5 -5 -5 -5 -4 -4 -4 -4 -4 -4 -3 -3 -2 -2 -1 -1 ------------ Run | Jun Mat Min Exi Min Mat Gar Fac Low Low Dat Pro Fac Low Low Zio Dee Pro Fac Upp Upp War Pro Fac Ext Cet Arc Hub Res Tes Res Qua Acc Com Used RIF Installer . | . . . . . . . . . . . . . . . . . . . . . . . . . . . . . . . . . . Robots Hacked 1 | . . . . . . . . . . . . 1 . . . . . . . . . . . . . . . . . . . . . Non-combat 1 | . . . . . . . . . . . . 1 . . . . . . . . . . . . . . . . . . . . . Combat . | . . . . . . . . . . . . . . . . . . . . . . . . . . . . . . . . . . Robot Hacks Applied 1 | . . . . . . . . . . . . 1 . . . . . . . . . . . . . . . . . . . . . find_chute 1 | . . . . . . . . . . . . 1 . . . . . . . . . . . . . . . . . . . . . Relay Couplers Released 36 | . . . . . . 17 . . . . . . . . . . . . . . . . 5 . . . 3 . . 5 3 3 . Machine Destruction 24 | . . . . . . 17 . . . . . . . . . . . . . . . . 2 . . . 3 . . 2 . . . Programmers 12 | . . . . . . . . . . . . . . . . . . . . . . . 3 . . . . . . 3 3 3 . Fabnet Peak Effective % . | . . . . . . . . . . . . . . . . . . . . . . . . . . . . . . . . . . Robots Rewired 20 | . . . . . . 4 . . . . . . . . . . . . . . 5 . . 11 . . . . . . . . . Allies Hacked . | . . . . . . . . . . . . . . . . . . . . . . . . . . . . . . . . . . Hacks Repelled . | . . . . . . . . . . . . . . . . . . . . . . . . . . . . . . . . . . Allies | -11 -10 -10 -10 -9 -8 -8 -7 -7 -7 -7 -6 -6 -6 -6 -6 -6 -5 -5 -5 -5 -5 -4 -4 -4 -4 -4 -4 -3 -3 -2 -2 -1 -1 -------- Run | Jun Mat Min Exi Min Mat Gar Fac Low Low Dat Pro Fac Low Low Zio Dee Pro Fac Upp Upp War Pro Fac Ext Cet Arc Hub Res Tes Res Qua Acc Com Total Allies 48 | . . . . 2 . 4 1 . . . 1 3 . . 5 . . . . . 5 . 1 21 5 . . . . . . . . Largest Group 15 | . . . . 2 1 4 5 . . . 1 3 . . 5 5 . . . . 5 . 1 14 15 5 1 . . . . . . Highest-Rated Group 935 | . . . . 51 31 129 135 . . . 96 93 . . 274 274 . . . . 269 . 45 723 935 364 82 . . . . . . Highest-Rated Ally 159 | . . . . 31 31 39 39 . . . 96 31 . . 96 96 . . . . 65 . 45 159 159 96 82 . . . . . . Warlord Squad Rendezvous 1 | . . . . . . . . . . . . 1 . . . . . . . . . . . . . . . . . . . . . Infantry 1 | . . . . . . . . . . . . 1 . . . . . . . . . . . . . . . . . . . . . Total Orders 24 | . . . . . . . . . . . . 5 3 . . . . 2 . . 5 . 9 . . . . . . . . . . STAY 8 | . . . . . . . . . . . . . . . . . . . . . 5 . 3 . . . . . . . . . . FOLLOW 3 | . . . . . . . . . . . . . . . . . . . . . . . 3 . . . . . . . . . . RETURN 13 | . . . . . . . . . . . . 5 3 . . . . 2 . . . . 3 . . . . . . . . . . Ally Attacks 594 | . . . . 8 4 . 87 . . . 9 66 18 . . 99 . . . . 34 . . 109 134 26 . . . . . . . Total Damage 15904 | . . . . 124 41 . 1638 . . . 468 1188 314 . . 2063 . . . . 1290 . . 3224 4431 1123 . . . . . . . Kills 98 | . . . . 3 . . 16 . . . 1 10 2 . . 15 . . . . 3 . . 18 24 6 . . . . . . . Allies Corrupted 2 | . . . . . . . . . . . . . . . . . . . . . . . . . 1 . 1 . . . . . . Allies Melted 6 | . . . . . . . . . . . 1 . . . . . . . . . 1 . . . . . . . . 4 . . . Intel | -11 -10 -10 -10 -9 -8 -8 -7 -7 -7 -7 -6 -6 -6 -6 -6 -6 -5 -5 -5 -5 -5 -4 -4 -4 -4 -4 -4 -3 -3 -2 -2 -1 -1 ------- Run | Jun Mat Min Exi Min Mat Gar Fac Low Low Dat Pro Fac Low Low Zio Dee Pro Fac Upp Upp War Pro Fac Ext Cet Arc Hub Res Tes Res Qua Acc Com Robot Analysis Total 4 | . 4 . . . . . . . . . . . . . . . . . . . . . . . . . . . . . . . . Derelict Logs Recovered 15 | . . 2 . 1 . . . 2 1 . 1 . . . 2 . . . 3 1 . 2 . . . . . . . . . . . Drone Launches 15 | . . . . . . . . . . . . 6 4 . . . . 2 . . . . 3 . . . . . . . . . . Drone Recoveries 13 | . . . . . . . . . . . . 5 3 . . . . 2 . . . . 3 . . . . . . . . . . Exploration | -11 -10 -10 -10 -9 -8 -8 -7 -7 -7 -7 -6 -6 -6 -6 -6 -6 -5 -5 -5 -5 -5 -4 -4 -4 -4 -4 -4 -3 -3 -2 -2 -1 -1 ------------- Run | Jun Mat Min Exi Min Mat Gar Fac Low Low Dat Pro Fac Low Low Zio Dee Pro Fac Upp Upp War Pro Fac Ext Cet Arc Hub Res Tes Res Qua Acc Com Turns Passed 50988 | 220 1566 1189 531 1421 1967 1387 1616 2316 2738 183 1678 1630 1270 550 3497 3173 1486 719 1108 865 1473 1932 2816 2047 632 973 564 991 1381 1040 2494 1780 1755 Spaces Moved 18503 | 109 764 579 302 638 653 459 567 863 948 76 594 515 486 221 1435 1057 444 329 578 444 547 815 898 740 206 115 179 250 417 320 844 526 585 Core 17 | 1 . . . . . . . . . . . . . . . . . . . . . . . . . 16 . . . . . . . Treads 12054 | 28 . . 190 638 653 459 567 863 948 76 594 515 486 221 1435 914 . . . . . . 116 740 206 99 179 250 417 320 844 289 7 Legs 6432 | 80 764 579 112 . . . . . . . . . . . . 143 444 329 578 444 547 815 782 . . . . . . . . 237 578 Wheels . | . . . . . . . . . . . . . . . . . . . . . . . . . . . . . . . . . . Hover . | . . . . . . . . . . . . . . . . . . . . . . . . . . . . . . . . . . Flight . | . . . . . . . . . . . . . . . . . . . . . . . . . . . . . . . . . . Fastest Speed 50 | 50 120 190 160 160 160 240 240 250 243 243 243 241 241 241 161 180 183 185 185 185 180 180 130 160 160 240 160 240 240 245 245 237 240 Average Speed 223 | 129 180 190 171 210 223 240 244 250 247 243 243 242 241 241 240 235 184 185 185 185 183 180 196 199 244 596 238 240 241 245 246 253 241 Slowest Speed 2800 | 160 190 190 190 240 240 240 250 250 250 243 243 243 241 241 241 330 185 185 185 185 185 180 250 250 340 2800 240 240 245 245 250 340 385 Overloaded Moves . | . . . . . . . . . . . . . . . . . . . . . . . . . . . . . . . . . . Propulsion Burnouts . | . . . . . . . . . . . . . . . . . . . . . . . . . . . . . . . . . . Robots Hopped . | . . . . . . . . . . . . . . . . . . . . . . . . . . . . . . . . . . Cave-ins Triggered 1 | . . . . . . . . . . . . . . . . . . . . . . . . . . 1 . . . . . . . Teleports 1 | . . . . . . . . . . . . . . . . . . . . . . . . . . . . . . . . 1 . Time Travels 1 | . . . 1 . . . . . . . . . . . . . . . . . . . . . . . . . . . . . . Exploration Rate (%) 58 | 6 96 100 63 94 51 71 20 94 97 68 76 18 70 39 82 83 57 7 75 62 68 94 27 83 66 74 34 11 60 17 75 18 33 Regions Visited 33 Branch Regions 23 Pre-discovered Areas 13 | . 2 2 . . . . . 2 . 1 1 . 1 . 1 . 1 . . . 2 . . . . . . . . . . . . Known Exits Taken 27 | . . . . . 1 . 1 1 1 1 1 1 1 1 1 1 1 1 1 1 1 1 1 1 1 1 1 1 1 1 1 1 . Unknown Exits Taken 5 | 1 1 1 1 1 . . . . . . . . . . . . . . . . . . . . . . . . . . . . . Scrap Searched 34 | . . 1 . 2 . . . 9 3 . 2 . 1 2 4 . 1 . 2 2 . 5 . . . . . . . . . . . Spaces Dug 299 | . 2 . . . . 2 . 22 12 . 3 . 24 . 2 . 5 6 7 . 18 2 65 7 . 3 . 25 24 22 22 3 23 Terrain Destroyed 1100 | . 2 . . . 31 16 7 22 55 . 3 26 58 2 2 16 25 17 12 10 24 28 97 13 9 8 213 49 41 76 96 11 131 Melee 35 | . . . . . . 2 . 22 . . 2 . . . 2 . . . . . 7 . . . . . . . . . . . . Projectile 473 | . 2 . . . 1 . . . . . 1 10 7 2 . 4 25 17 12 10 17 28 97 13 9 8 9 49 41 9 44 11 47 AOE 592 | . . . . . 30 14 7 . 55 . . 16 51 . . 12 . . . . . . . . . . 204 . . 67 52 . 84 Terrain Rammed . | . . . . . . . . . . . . . . . . . . . . . . . . . . . . . . . . . . Walls Destroyed . | . . . . . . . . . . . . . . . . . . . . . . . . . . . . . . . . . . Machines Disabled . | . . . . . . . . . . . . . . . . . . . . . . . . . . . . . . . . . . Actions | -11 -10 -10 -10 -9 -8 -8 -7 -7 -7 -7 -6 -6 -6 -6 -6 -6 -5 -5 -5 -5 -5 -4 -4 -4 -4 -4 -4 -3 -3 -2 -2 -1 -1 --------- Run | Jun Mat Min Exi Min Mat Gar Fac Low Low Dat Pro Fac Low Low Zio Dee Pro Fac Upp Upp War Pro Fac Ext Cet Arc Hub Res Tes Res Qua Acc Com Total 26005 | 143 867 645 317 683 951 623 713 942 1306 75 738 778 553 232 1469 1675 1038 393 601 469 947 1227 1770 1199 296 370 259 535 675 529 1248 944 795 Wait 4060 | . 24 46 . 18 65 37 20 17 305 . 57 60 11 . 8 444 527 20 3 9 272 341 560 216 33 202 15 173 107 132 91 204 43 Move 18469 | 108 763 578 301 637 653 458 566 862 947 75 593 514 485 220 1434 1056 443 328 577 443 546 814 897 739 205 113 178 249 416 319 843 525 584 Hop . | . . . . . . . . . . . . . . . . . . . . . . . . . . . . . . . . . . Pick Up 301 | 6 13 1 5 2 36 8 15 6 6 . 2 13 7 . 3 24 4 1 1 . 4 3 50 9 7 1 5 11 10 6 21 10 11 Fast Attach 169 | 6 2 . . 1 9 1 7 . 2 . . 14 1 . 3 11 4 2 2 . 8 6 7 9 7 8 5 3 15 1 17 12 6 Attach 138 | 1 . . 3 . 14 7 6 2 3 . . 11 6 1 6 17 . 2 . . 1 2 6 3 1 1 11 3 5 6 3 11 6 Detach 202 | . 2 . 1 . 3 1 3 . . . . 10 . 2 5 17 6 5 2 . 10 12 21 10 4 2 8 8 16 12 11 17 14 Swap 450 | 2 8 4 . 5 18 10 16 8 15 . 34 57 8 . 1 8 17 14 6 11 16 13 62 18 5 . 4 14 14 7 31 11 13 Drop 387 | . 9 3 5 2 26 3 29 6 8 . 2 31 8 2 3 30 7 1 2 . 8 9 57 17 14 8 4 10 20 8 32 13 10 Fire 1518 | 20 44 12 2 15 123 64 48 16 20 . 43 59 26 3 . 62 30 20 8 6 27 27 104 58 20 34 29 62 70 38 196 136 96 Melee 51 | . . . . . . 3 . 24 . . 2 2 . . 6 1 . . . . 13 . . . . . . . . . . . . Ram . | . . . . . . . . . . . . . . . . . . . . . . . . . . . . . . . . . . Kick 11 | . 2 1 . . . . . . . . . . . . . . . . . . . . 6 . . . . . . . . 1 1 Crush 32 | . . . . 3 4 . 3 . . . . 2 . 4 . 5 . . . . . . . 1 . . . 2 2 . 3 2 1 Escape Stasis 27 | . . . . . . 8 . . . . . 4 . . . . . . . . . . . 2 . 1 . . . . . 2 10 Rewire 182 | . . . . . . 23 . . . . . . . . . . . . . . 42 . . 117 . . . . . . . . . Trap 8 | . . . . . . . . 1 . . 5 1 1 . . . . . . . . . . . . . . . . . . . . Miscellaneous . | . . . . . . . . . . . . . . . . . . . . . . . . . . . . . . . . . . Route ------- -11/Junkyard -10/Materials (discovered 4 exits: [*Mat x3] / [*Min]) -10/Mines (discovered 3 exits: [*Mat x2] / *Exi) -10/Exiles (discovered 2 exits: [*Min x2]) -9/Mines (discovered 2 exits: *Mat x2) -8/Materials (discovered 4 exits: *Fac x2 / [*Sto] / Gar) -8/Garrison (discovered 2 exits: *Fac x2) -7/Factory (discovered 2 exits: *Low x2) -7/Lower Caves -7/Lower Caves (discovered 2 exits: *Fac / *Dat) -7/Data Miner -6/Proximity Caves -6/Factory -6/Lower Caves -6/Lower Caves (discovered 2 exits: *Fac / *Zio) -6/Zion (discovered 2 exits: *Dee / [*Pro]) -6/Deep Caves -5/Proximity Caves -5/Factory (discovered 2 exits: *Upp x2) -5/Upper Caves -5/Upper Caves -5/Warlord -4/Proximity Caves -4/Factory (discovered 5 exits: Upp x2 / *Ext x2 / Arm) -4/Extension (discovered 2 exits: *Res / *Cet) -4/Cetus (discovered 2 exits: *Res / *Arc) -4/Archives (discovered 2 exits: *Res / *Hub) -4/Hub_04(d) -3/Research (discovered 2 exits: Res / *Tes) -3/Testing -2/Research -2/Quarantine -1/Access -1/Command Tau Ceti IV Orbit History --------- Turn | Location | Event 54 | -11/Junkyard | Discovered new exit (range 16) 221 | -11/Junkyard | Entered Materials 300 | -10/Materials | Discovered new exit (range 17) 309 | -10/Materials | Build established: Mutant 447 | -10/Materials | Discovered new exit (range 16) 775 | -10/Materials | Discovered new exit (range 15) 1326 | -10/Materials | Discovered new exit (range 10) 1787 | -10/Materials | Entered Mines 1928 | -10/Mines | Learned location of Storage (-8) 2178 | -10/Mines | Deemed a non-threat by the Exiles lab entrance 2180 | -10/Mines | Discovered new exit (range 5) 2291 | -10/Mines | Excavation squad dispatched 2291 | -10/Mines | A large section of the Mines collapsed 2409 | -10/Mines | Build established: Scavenger-Mutant 2554 | -10/Mines | Learned location of Zion (-6) 2630 | -10/Mines | Discovered new exit (range 12) 2788 | -10/Mines | Discovered new exit (range 11) 2976 | -10/Mines | Entered Exiles 3001 | -10/Exiles | Discovered new exit (range 15) 3024 | -10/Exiles | Met 8R-AWN 3056 | -10/Exiles | Met EX-HEX 3111 | -10/Exiles | Met EX-BIN 3132 | -10/Exiles | Aligned with FarCom system 3134 | -10/Exiles | Given EX-Vault access code 3182 | -10/Exiles | Opened EX-Vault 3196 | -10/Exiles | Found Potential Leg 3199 | -10/Exiles | Found Potential Leg 3205 | -10/Exiles | Found Chronowheel 3241 | -10/Exiles | Warned to stay clear of 0b10 Research branches 3299 | -10/Exiles | Met EX-DEC 3383 | -10/Exiles | Activated Chronowheel 3383 | -10/Exiles | Spacetime reconverged on an earlier point 3474 | -10/Exiles | Attacked by the Exiles 3492 | -10/Exiles | Discovered new exit (range 10) 3507 | -10/Exiles | Build established: Mutant 3507 | -10/Exiles | Entered Mines 3602 | -9/Mines | Found a damaged Exp. Sensor Array with a note attached 3605 | -9/Mines | Found Prototype Device 3606 | -9/Mines | Identified Exp. Sensor Array 3616 | -9/Mines | Assembled infested the area 3759 | -9/Mines | Core integrity fell below 50% 3917 | -9/Mines | Discovered new exit (range 9) 4245 | -9/Mines | Discovered new exit (range 6) 4928 | -9/Mines | Entered Materials 4928 | -8/Materials | Accompanied by 1 ally 4928 | -8/Materials | Evolved 4 slots: Propulsion x1, Utility x3 4929 | -8/Materials | Identified exit to Factory 4933 | -8/Materials | Led the pair of lost Derelicts to an unsafe place 4977 | -8/Materials | Discovered new exit (range 13) 5354 | -8/Materials | Lost 5 parts (2n2u1w) 5949 | -8/Materials | Discovered exit to Factory (range 7) 6369 | -8/Materials | Build established: Scavenger-Mutant 6895 | -8/Materials | Identified exit to Garrison 6895 | -8/Materials | Entered Garrison 6974 | -8/Garrison | Triggered checkpoint 7061 | -8/Garrison | Garrison Relay disabled 7125 | -8/Garrison | Garrison Relay disabled 7246 | -8/Garrison | Triggered checkpoint 7293 | -8/Garrison | Triggered checkpoint 7452 | -8/Garrison | Triggered checkpoint 7554 | -8/Garrison | Triggered checkpoint 7572 | -8/Garrison | Garrison Relay disabled 7645 | -8/Garrison | Discovered exit to Factory (range 11) 7800 | -8/Garrison | Triggered checkpoint 7974 | -8/Garrison | Lost 3 parts (1p2n) 8066 | -8/Garrison | Triggered checkpoint 8095 | -8/Garrison | Garrison Relay disabled 8244 | -8/Garrison | Discovered exit to Factory (range 10) 8282 | -8/Garrison | Entered Factory 8282 | -7/Factory | Accompanied by 4 allies 8282 | -7/Factory | Evolved 2 slots: Propulsion x1, Utility x1 9081 | -7/Factory | Identified exit to Lower Caves 9482 | -7/Factory | First assault squad dispatched 9675 | -7/Factory | Build established: Mutant 9898 | -7/Factory | Entered Lower Caves 10029 | -7/Lower Caves | Met a Warlord Commander 10030 | -7/Lower Caves | Learned location of Warlord (-5) 10045 | -7/Lower Caves | Found Encrypted Comm Array 10259 | -7/Lower Caves | Identified exit to Lower Caves 10325 | -7/Lower Caves | Build established: Skirmisher 11457 | -7/Lower Caves | Build established: Assassin 11857 | -7/Lower Caves | Build established: Skirmisher 12214 | -7/Lower Caves | Entered another Lower Caves area 12275 | -7/Lower Caves | Discovered new exit (range 14) 12305 | -7/Lower Caves | Identified exit to Factory 12503 | -7/Lower Caves | Build established: Mutant 13039 | -7/Lower Caves | Build established: Skirmisher 14583 | -7/Lower Caves | Spotted B-75 Beast 14602 | -7/Lower Caves | Discovered new exit (range 13) 14629 | -7/Lower Caves | Identified exit to Data Miner 14952 | -7/Lower Caves | Entered Data Miner 14952 | -7/Data Miner | Discovered new exit (range 6) 14967 | -7/Data Miner | Identified exit to Proximity Caves 14999 | -7/Data Miner | Met Data Miner 15040 | -7/Data Miner | Learned location of Section 7 (-2) 15040 | -7/Data Miner | Acquired the access code to Warlord's prototype stash 15079 | -7/Data Miner | Received God Mode back door access code from Data Miner 15135 | -7/Data Miner | Entered Proximity Caves 15138 | -6/Proximity Caves | Spotter reported a threat 15138 | -6/Proximity Caves | Spotter reported a threat 15296 | -6/Proximity Caves | Escorted by Enhanced Grunt 15303 | -6/Proximity Caves | Attracted the attention of an 0b10 base 15373 | -6/Proximity Caves | Learned Armory garrison access intel 15373 | -6/Proximity Caves | Learned Factory terminal intel 15373 | -6/Proximity Caves | Learned Armory emergency access door positions 16777 | -6/Proximity Caves | Discovered exit to Factory (range 15) 16813 | -6/Proximity Caves | Entered Factory 16813 | -6/Factory | Evolved 2 slots: Power x1, Utility x1 16814 | -6/Factory | Identified exit to Lower Caves 16815 | -6/Factory | Loaded intel: 26 terminal locations 17537 | -6/Factory | Build established: Infiltrator-Skirmisher 17694 | -6/Factory | Fabricated Combat Drone Bay (x1) 17745 | -6/Factory | Joined by Warlord Infantry squad 17865 | -6/Factory | Allied Derelicts emerged from ambush trap array 18147 | -6/Factory | Cargo convoy interrupted 18180 | -6/Factory | Incoming assault squad redirected 18252 | -6/Factory | Found Prototype Device 18252 | -6/Factory | Identified Exp. ECM Suite 18384 | -6/Factory | Found Prototype Protection 18384 | -6/Factory | Identified Active Cooling Armor 18406 | -6/Factory | Found Exp. ECM Suite 18443 | -6/Factory | Entered Lower Caves 18445 | -6/Lower Caves | Attracted the attention of an 0b10 checkpoint 18479 | -6/Lower Caves | Build established: Mutant 18918 | -6/Lower Caves | Attracted the attention of an 0b10 base 18974 | -6/Lower Caves | Destroyed 11 combat bots 18977 | -6/Lower Caves | Learned Extension terminal intel 18977 | -6/Lower Caves | Learned Research terminal intel 18977 | -6/Lower Caves | Learned Factory emergency access door positions 18977 | -6/Lower Caves | Learned location of Armory (-4) 19641 | -6/Lower Caves | Discovered new exit (range 10) 19711 | -6/Lower Caves | Identified exit to Lower Caves 19713 | -6/Lower Caves | Entered another Lower Caves area 19784 | -6/Lower Caves | Discovered new exit (range 7) 19798 | -6/Lower Caves | Identified exit to Factory 20229 | -6/Lower Caves | Discovered new exit (range 15) 20261 | -6/Lower Caves | Identified exit to Zion 20263 | -6/Lower Caves | Entered Zion 20349 | -6/Zion | System corruption cleaned by Quarantine Array 21069 | -6/Zion | Given the Hacking Drone Bay 21359 | -6/Zion | Learned Factory interactive machine intel 21524 | -6/Zion | Acquired unknown access codes intercepted by a Zionite 21666 | -6/Zion | Given A8's code to call for help 22501 | -6/Zion | Discovered new exit (range 14) 22915 | -6/Zion | Found Prototype Device 23135 | -6/Zion | Gained Derelict followers 23143 | -6/Zion | Learned Factory terminal intel 23739 | -6/Zion | Discovered new exit (range 7) 23742 | -6/Zion | Opened final containment barrier to the Deep Caves 23745 | -6/Zion | Enhanced Grunt warped into view, answering call for help 23747 | -6/Zion | Saw the warning signs outside the Deep Caves entrance 23750 | -6/Zion | Enhanced Grunt warped into view, answering call for help 23754 | -6/Zion | Identified exit to Deep Caves 23760 | -6/Zion | Entered Deep Caves 23760 | -6/Deep Caves | Accompanied by 5 allies 24042 | -6/Deep Caves | Attacked by Z-Imprinter 24065 | -6/Deep Caves | Allies destroyed Z-Imprinter 24111 | -6/Deep Caves | Found Prototype Protection 24111 | -6/Deep Caves | Identified Zio. Weapon Casing 24229 | -6/Deep Caves | Z-Facility disabled 24381 | -6/Deep Caves | Found Zio. Weapon Casing 25157 | -6/Deep Caves | Discovered new exit (range 6) 25167 | -6/Deep Caves | Identified exit to Proximity Caves 25486 | -6/Deep Caves | Found Prototype Device 25486 | -6/Deep Caves | Identified Exp. Thermal Shield 25766 | -6/Deep Caves | Found Prototype Protection 25834 | -6/Deep Caves | Found Zio. Weapon Casing 26077 | -6/Deep Caves | Destroyed as-41934 26151 | -6/Deep Caves | Spotted as-61030 26163 | -6/Deep Caves | Destroyed as-61030 26172 | -6/Deep Caves | Triggered Deep Caves wall 26175 | -6/Deep Caves | Identified Zio. Heavy Carapace 26176 | -6/Deep Caves | Exposed GOLEM chamber 26178 | -6/Deep Caves | Spotted AS-46124 26190 | -6/Deep Caves | Destroyed AS-46124 26195 | -6/Deep Caves | Spotted AS-57354 26221 | -6/Deep Caves | Destroyed 39 combat bots 26222 | -6/Deep Caves | Destroyed AS-57354 26265 | -6/Deep Caves | Lost 10 parts (2p2n6u) 26309 | -6/Deep Caves | Found GOLEM Unit 26650 | -6/Deep Caves | Found GOLEM Unit 26659 | -6/Deep Caves | Found GOLEM Unit 26678 | -6/Deep Caves | Found AWS/Thermal 26933 | -6/Deep Caves | Entered Proximity Caves 26950 | -5/Proximity Caves | Found Alien Artifact 26950 | -5/Proximity Caves | Identified Core Expander 26950 | -5/Proximity Caves | Installed Core Expander, added new Weapon slot 27336 | -5/Proximity Caves | Attracted the attention of an 0b10 base 27400 | -5/Proximity Caves | Learned Factory terminal intel 27400 | -5/Proximity Caves | Learned Factory security intel 27400 | -5/Proximity Caves | Learned Armory stockpile data 27400 | -5/Proximity Caves | Learned Armory emergency access door positions 27400 | -5/Proximity Caves | Learned Factory trap positions 27400 | -5/Proximity Caves | Learned location of 1 exit from Research 27833 | -5/Proximity Caves | Attracted the attention of an 0b10 checkpoint 27952 | -5/Proximity Caves | Discovered exit to Factory (range 12) 28073 | -5/Proximity Caves | Build established: Scavenger-Golem 28419 | -5/Proximity Caves | Entered Factory 28419 | -5/Factory | Evolved 2 slots: Utility x2 28420 | -5/Factory | Loaded intel: 91 trap records 28423 | -5/Factory | Loaded intel: 52 interactive machine locations 28424 | -5/Factory | Loaded intel: 26 terminal locations 28489 | -5/Factory | Discovered new exit (range 9) 28503 | -5/Factory | Identified exit to Upper Caves 28671 | -5/Factory | Identified Hacking Drone Bay 28851 | -5/Factory | Build established: Golem 29138 | -5/Factory | Entered Upper Caves 29741 | -5/Upper Caves | Learned Factory interactive machine intel 30200 | -5/Upper Caves | Learned Factory stockpile data 30200 | -5/Upper Caves | Spotted B-75 Beast 30209 | -5/Upper Caves | Discovered new exit (range 10) 30224 | -5/Upper Caves | Identified exit to Upper Caves 30246 | -5/Upper Caves | Entered another Upper Caves area 30544 | -5/Upper Caves | Build established: Scavenger-Golem 30828 | -5/Upper Caves | Attracted the attention of an 0b10 checkpoint 30994 | -5/Upper Caves | Learned 4 Factory zone layouts 31074 | -5/Upper Caves | Discovered new exit (range 8) 31085 | -5/Upper Caves | Identified exit to Warlord 31111 | -5/Upper Caves | Entered Warlord 31174 | -5/Warlord | System corruption cleaned by Quarantine Array 31421 | -5/Warlord | Learned Armory emergency access door positions 31421 | -5/Warlord | Learned Quarantine trap positions 31421 | -5/Warlord | Learned Testing trap positions 31423 | -5/Warlord | Learned 4 Testing zone layouts 31425 | -5/Warlord | Learned Armory recycling unit intel 31425 | -5/Warlord | Learned Research security intel 31846 | -5/Warlord | Build established: Commander-Golem 31957 | -5/Warlord | Met Warlord 31982 | -5/Warlord | Warlord's base attacked by MAIN.C 31983 | -5/Warlord | Opened Warlord's prototype stash 32007 | -5/Warlord | Found Prototype Device 32007 | -5/Warlord | Identified Thermal Barrier 32026 | -5/Warlord | Found Prototype Reactor 32026 | -5/Warlord | Identified Vortex Chain Reactor 32031 | -5/Warlord | Found Prototype Processor 32031 | -5/Warlord | Identified Exp. Targeting Computer 32040 | -5/Warlord | Found Prototype Processor 32040 | -5/Warlord | Identified Exp. Armor Integrity Analyzer 32117 | -5/Warlord | Spotted B-86 Titan 32125 | -5/Warlord | Spotted B-75 Beast 32131 | -5/Warlord | Destroyed B-75 Beast 32232 | -5/Warlord | Spotted B-86 Titan 32232 | -5/Warlord | Spotted B-75 Beast 32308 | -5/Warlord | Spotted Striker 32312 | -5/Warlord | Spotted Executioner 32320 | -5/Warlord | Destroyed Striker 32332 | -5/Warlord | Warlord forces counterattacked 32397 | -5/Warlord | Spotted Executioner 32402 | -5/Warlord | Destroyed Executioner 32465 | -5/Warlord | Discovered new exit (range 13) 32486 | -5/Warlord | P-80 Master assimilated allied 0I-HD7(g) 32487 | -5/Warlord | Spotted Striker 32493 | -5/Warlord | Spotted Striker 32500 | -5/Warlord | Spotted Executioner 32549 | -5/Warlord | Build established: Golem 32583 | -5/Warlord | Identified exit to Proximity Caves 32584 | -5/Warlord | Entered Proximity Caves 32625 | -4/Proximity Caves | Found Alien Artifact 32944 | -4/Proximity Caves | Learned 4 Research zone layouts 33319 | -4/Proximity Caves | Learned Research security intel 34146 | -4/Proximity Caves | Discovered new exit (range 13) 34166 | -4/Proximity Caves | Identified exit to Factory 34516 | -4/Proximity Caves | Entered Factory 34516 | -4/Factory | Evolved 2 slots: Utility x2 34517 | -4/Factory | Identified exit to Armory 34520 | -4/Factory | Loaded intel: 53 interactive machine locations 34521 | -4/Factory | Loaded intel: 27 terminal locations 34639 | -4/Factory | Identified exit to Upper Caves 34639 | -4/Factory | Identified exit to Extension 35637 | -4/Factory | Incoming investigation squad redirected 35689 | -4/Factory | Fabricated Adv. Heavy Siege Treads (x2) 36766 | -4/Factory | First assault squad dispatched 36783 | -4/Factory | Incoming assault squad redirected 37332 | -4/Factory | Entered Extension 37333 | -4/Extension | Loaded intel: 16 terminal locations 37824 | -4/Extension | Rescued a captive Derelict 37869 | -4/Extension | Rescued a captive Derelict 37904 | -4/Extension | Rescued a captive Derelict 38144 | -4/Extension | Incoming investigation squad redirected 38334 | -4/Extension | Spotted B-86 Titan 38350 | -4/Extension | Spotted B-86 Titan 38397 | -4/Extension | Destroyed B-86 Titan 38419 | -4/Extension | Destroyed B-86 Titan 38602 | -4/Extension | Rescued A7 38739 | -4/Extension | Rescued a captive Derelict 38740 | -4/Extension | Rescued a captive Derelict 38797 | -4/Extension | Rescued a captive Derelict 38886 | -4/Extension | Build established: Tank 39235 | -4/Extension | Rescued a captive Derelict 39237 | -4/Extension | Rescued a captive Derelict 39286 | -4/Extension | Rescued a captive Derelict 39340 | -4/Extension | Discovered new exit (range 10) 39342 | -4/Extension | Discovered new exit (range 6) 39360 | -4/Extension | Identified exit to Research 39372 | -4/Extension | Identified exit to Cetus 39379 | -4/Extension | Entered Cetus 39379 | -4/Cetus | Accompanied by 14 allies (A7) 39384 | -4/Cetus | Acquired a Cetus Manufacturing Module code from A7 39417 | -4/Cetus | Spotted Cetus Guard 39417 | -4/Cetus | Spotted Cetus Guard 39419 | -4/Cetus | Spotted Cetus Guard 39426 | -4/Cetus | Allies destroyed Cetus Guard 39428 | -4/Cetus | Allies destroyed Cetus Guard 39433 | -4/Cetus | Allies destroyed Cetus Guard 39530 | -4/Cetus | Started Cetus Manufacturing Module 39555 | -4/Cetus | Manufactured an Enhanced Grunt 39558 | -4/Cetus | Escorted A7 to Cetus Mainframe 39580 | -4/Cetus | Manufactured an Enhanced Grunt 39587 | -4/Cetus | Discovered new exit (range 16) 39605 | -4/Cetus | Manufactured an Enhanced Grunt 39628 | -4/Cetus | Spotted Cetus Guard 39628 | -4/Cetus | Spotted Cetus Guard 39630 | -4/Cetus | Manufactured an Enhanced Grunt 39630 | -4/Cetus | Spotted Cetus Guard 39631 | -4/Cetus | Spotted Cetus Guard 39639 | -4/Cetus | Allies destroyed Cetus Guard 39639 | -4/Cetus | Allies destroyed Cetus Guard 39640 | -4/Cetus | Allies destroyed Cetus Guard 39646 | -4/Cetus | Allies destroyed Cetus Guard 39649 | -4/Cetus | Discovered exit to Research (range 15) 39655 | -4/Cetus | Manufactured an Enhanced Grunt 39664 | -4/Cetus | Build established: Commander-Golem 39665 | -4/Cetus | Met Revision 17 39669 | -4/Cetus | Destroyed Revision 17 39864 | -4/Cetus | Found a strange terminal 39955 | -4/Cetus | Identified exit to Archives 39966 | -4/Cetus | Destroyed A7 39975 | -4/Cetus | Found Prototype Protection 39975 | -4/Cetus | Identified Med. Regenerative Plating 40006 | -4/Cetus | Extracted ID and sensor layout for unrecognized location from A7's data core 40011 | -4/Cetus | Entered Archives 40011 | -4/Archives | Accompanied by 5 allies 40087 | -4/Archives | Crushed by falling debris 40114 | -4/Archives | Discovered exit to Research (range 4) 40503 | -4/Archives | Build established: Mutant 40927 | -4/Archives | Met Zhirov 40933 | -4/Archives | Reinforcements dispatched to Archives 40948 | -4/Archives | Discovered new exit (range 16) 40982 | -4/Archives | Identified exit to Hub_04(d) 40984 | -4/Archives | Entered Hub_04(d) 40984 | -4/Hub_04(d) | Accompanied by 1 ally 41119 | -4/Hub_04(d) | Build established: Scavenger-Mutant 41271 | -4/Hub_04(d) | System corruption reached 10% 41350 | -4/Hub_04(d) | Destroyed 12 combat bots 41351 | -4/Hub_04(d) | Lost 6 parts (1p3u2w) 41465 | -4/Hub_04(d) | Discovered exit to Research (range 4) 41484 | -4/Hub_04(d) | First assault squad dispatched 41515 | -4/Hub_04(d) | Network Hub disabled 41531 | -4/Hub_04(d) | Incoming assault squad redirected 41540 | -4/Hub_04(d) | Incoming assault squad redirected 41548 | -4/Hub_04(d) | Entered Research 41548 | -3/Research | Evolved 2 slots: Power x1, Utility x1 41549 | -3/Research | Identified exit to Research 41552 | -3/Research | Loaded intel: 24 terminal locations 41589 | -3/Research | Build established: Scavenger-Gunner 42095 | -3/Research | Fabricated Adv. Heavy Siege Treads (x2) 42298 | -3/Research | First assault squad dispatched 42319 | -3/Research | Incoming assault squad redirected 42463 | -3/Research | Discovered new exit (range 15) 42512 | -3/Research | Identified exit to Testing 42539 | -3/Research | Entered Testing 42541 | -3/Testing | Loaded intel: 25 trap records 43172 | -3/Testing | Found Prototype Ballistic Cannon 43172 | -3/Testing | Identified Omega Cannon 43289 | -3/Testing | First assault squad dispatched 43348 | -3/Testing | System corruption reached 10% 43381 | -3/Testing | Lost 3 parts (1n2u) 43722 | -3/Testing | Discovered exit to Research (range 12) 43920 | -3/Testing | Spotted Alpha 7 43920 | -3/Testing | Entered Research 43920 | -2/Research | Warlord forces began assault on 0b10 43920 | -2/Research | Evolved 2 slots: Utility x2 43945 | -2/Research | Distinguished unit "Offensive Angels" dispatched to help 44030 | -2/Research | Research machine network offline 44339 | -2/Research | Build established: Skirmisher 44542 | -2/Research | Borebot progress halted 44612 | -2/Research | Found Quantum Capacitor 44658 | -2/Research | Build established: Mutant 44687 | -2/Research | Borebot progress halted 44832 | -2/Research | Discovered new exit (range 7) 44845 | -2/Research | Identified exit to Quarantine 44960 | -2/Research | Entered Quarantine 44961 | -2/Quarantine | Loaded intel: 30 trap records 45146 | -2/Quarantine | Destroyed 0R-EN3(g) 45250 | -2/Quarantine | First assault squad dispatched 45277 | -2/Quarantine | Incoming assault squad redirected 45364 | -2/Quarantine | Spotted Alpha 7 45645 | -2/Quarantine | Found Alien Artifact 45649 | -2/Quarantine | Found Alien Artifact 45998 | -2/Quarantine | Found Gamma Bomb Array 46056 | -2/Quarantine | Found Alien Artifact 46056 | -2/Quarantine | Identified Core Reset Matrix 46056 | -2/Quarantine | Identified Hpw. Transdimensional Reconstructor 46056 | -2/Quarantine | Identified Transdimensional Reconstructor 46056 | -2/Quarantine | Used Core Reset Matrix 46060 | -2/Quarantine | Detected hypermatrix surge 46060 | -2/Quarantine | Sensed 10 artifacts in vicinity 46294 | -2/Quarantine | Found Hpw. Transdimensional Reconstructor 46578 | -2/Quarantine | Met incapacitated Sigix Warrior 46578 | -2/Quarantine | Lockdown squad dispatched 46589 | -2/Quarantine | Acquired the access code to the Sigix quarantine chamber 46594 | -2/Quarantine | Unlocked Sigix quarantine chamber 46696 | -2/Quarantine | Spotted Lightning 46696 | -2/Quarantine | Spotted Lightning 46699 | -2/Quarantine | Spotted Lightning 46734 | -2/Quarantine | Destroyed Lightning 46750 | -2/Quarantine | Destroyed Lightning 46764 | -2/Quarantine | Destroyed Lightning 46771 | -2/Quarantine | Found Prototype Device 46772 | -2/Quarantine | Identified Exp. EM Disruption Field 46815 | -2/Quarantine | Found Prototype Device 46815 | -2/Quarantine | Identified Exp. Phase Shifter 46973 | -2/Quarantine | Scanned by Researcher 47170 | -2/Quarantine | System corruption reached 10% 47314 | -2/Quarantine | Found Core Cannon 47431 | -2/Quarantine | Discovered new exit (range 4) 47436 | -2/Quarantine | Identified exit to Access 47454 | -2/Quarantine | Entered Access 47454 | -1/Access | Evolved 2 slots: Utility x2 48402 | -1/Access | Found Unknown Device 48402 | -1/Access | Identified Antimissile System 48454 | -1/Access | First assault squad dispatched 48508 | -1/Access | Found Prototype Processor 48508 | -1/Access | Identified Exp. Armor Integrity Analyzer 48515 | -1/Access | Lost 3 parts (2u1w) 48749 | -1/Access | Build established: Scavenger-Mutant 48835 | -1/Access | Warped through subspace 48866 | -1/Access | Lost 6 parts (1p5u) 49053 | -1/Access | Discovered new exit (range 7) 49067 | -1/Access | Identified exit to Command 49126 | -1/Access | Build established: Hacker-Mutant 49234 | -1/Access | Entered Command 49900 | -1/Command | Phase Generator disabled 49973 | -1/Command | Disengaged cave seal 49973 | -1/Command | Derelicts emerged from the dark tunnel 49974 | -1/Command | Welcomed Warlord to Command 50011 | -1/Command | First assault squad dispatched 50352 | -1/Command | Incoming investigation squad redirected 50515 | -1/Command | System corruption reached 10% 50655 | -1/Command | Build established: Hacker-Skirmisher 50929 | -1/Command | Discovered new exit (range 11) 50960 | -1/Command | Spotted Executioner 50961 | -1/Command | Spotted Executioner 50963 | -1/Command | Spotted B-99 Colossus 50963 | -1/Command | Spotted Striker 50963 | -1/Command | Spotted B-99 Colossus 50964 | -1/Command | Spotted Executioner 50966 | -1/Command | Spotted Executioner 50967 | -1/Command | Spotted Alpha 7 50968 | -1/Command | Spotted Striker 50973 | -1/Command | Spotted Alpha 7 50980 | -1/Command | Warlord destroyed during the assault 50982 | -1/Command | Identified exit to Surface 50989 | *** | Destroyed 0b10! Last Messages --------------- 50985_ Penetrated by Slug. 50985_ Slug penetrates Wall. 50985_ Adv. Signal Interpreter destroyed. 50986_ Penetrated by Slug. 50987_ Beam penetrates Executioner. 50987_ Executioner suffers critical hit (Destroy). 50987_ Destroyed Prototype Ballistic Gun. 50987_ Beam penetrates Alpha 7. 50987_ Alpha 7 suffers critical hit (Destroy). 50987_ Destroyed Prototype Reactor. 50987_ Beam penetrates B-99 Colossus. 50987_ Beam penetrates Wall. 50987_ Beam penetrates Reinforced Barrier. 50987_ Beam penetrates Earth. 50987_ Lrn. Sensor Array destroyed. 50987_ Penetrated by Slug. 50987_ Critical hit (Destroy). 50987_ Slug penetrates Wall. 50988_ Penetrated by Slug. 50988_ Slug penetrates Wall. Map ----- +----------------------------------------------------+ | | | | | | | | | | | | | | | | | ?????????????????##?#????#????????????#??????????? | | ???????????#??##?#?#??#######???#??##????????????? | | ???????????????##??###?##?###?#??????????????????? | | ??????????? ????###?#? #?##?#?#?#??##??????????? | | ?????????? ? ???###? ###########??#?#????????? | | ???????? ??? ????###### ??#?##?###?????#????????? | | ??????? ?? ? ?####### #?#?####?##?##??????????? | | ??????? ?? ?"? ?##?#?## ########??#?###??#??????? | | ????#??? # """" ##?#?## ##??#######?####??##????? | | ????? ??# """" #?#?###;##?#?#?#?#?##?####??????? | | ???? ??? # ?"" #######;##########??#######?????? | | ????? ?? ???? ??### BB#???#?###??##? ??? | | ??? ? # ? ### BB############?????? | | ?? ??? # ?? ? ### ^ ^ # # # # #####? ??? | | ?? # ?### ^ ? ##?? ?? | | ? ? ? ? # ? ##; ^ + ?? | | ??? ? ?? ? ???# "" ? ? ?? | | ??? ?? ? ? ?## @" ^ ^ +? ?? | | ?? ??? ? #? ? ##; % % m ^^ + ? | | ? ? ? ? ### KKE7^ 7^ ^^^^ ## ? ? | | ? ???? ?#########; E # # # # ?### ? ?? | | ?? ?? ? ##########; EE BB;###?##?#### ? ?? | | ? ?###??###########; % BB;;;##?###### ? ? | | # ?#? ? ? ###;## ; ######## ?####?#?? ? | | ? #? ? ########%##?#?###### #?### ?? | | ? ## ? ########%"############ ##### ?? | | ? ## "" #?###?## % ####### ? ? ? | | ? ##""""? #####?## ####### #?#### | | ?? ##"""" ? ? # # ##?##?#?####?? | | ? ## "" #####?## #### ##?### | | ? ?## ? ######## *###? ####?? | | #? ##############+######### #####? | | #? ?# ############# ##?### | | # ## ? + ###### | | # ??#? ##### ## ### ### ###### | | ?? ## ? ##### ## ### ?## #####? | | # ?################## ## ###+###+###### | | ? ##### ## #### ## ?## ##?# | | "T % % ## ## ###? | | "? !! # # #### | | ##### ####%%! # # #??# | | #?###########"##" = # + #### | +----------------------------------------------------+ Best States ------------- Heat Dissipation 182 Energy Generation 65 Energy Capacity 1950 Matter Stores 300 Matter Capacity 300 Sight Range 16 Robot Scan Range 20 Terrain Scan Range 24 Terrain Scan Density 210 Jamming Range 16 Additional Mass Support 20 Corruption Block 20 Armor Coverage 2000 Resistance: KI 15 Resistance: TH 30 Resistance: EX 15 Resistance: EM 75 Resistance: I 15 Resistance: S 15 Resistance: P 15 Core Shielding 30 Utility Shielding 66 Weapon Shielding 100 Phase Shifting 20 Evasion (%) 60 Targeting Accuracy 20 Core Analysis 8 Armor Integrity Analysis 50 Recoil Reduction 4 Particle Charging 25 Offensive Hacking 14 Defensive Hacking 14 Authchip Count 2 Trap Extractor Capacity 6 Item Schematics ----------------- Exp. Signal Interpreter | -2/Quarantine | Archive Gravity Flail | -2/Quarantine | Archive Cld. Nuclear Pulse Thruster | -2/Quarantine | Archive Robot Schematics ------------------ A-27 Freighter | -2/Quarantine | Archive T-07 Excavator | -2/Quarantine | Archive Fabricated ------------ Combat Drone Bay | x1 | -6/Factory | Authchip Adv. Heavy Siege Treads | x2 | -4/Factory | Preloaded Adv. Heavy Siege Treads | x2 | -3/Research | Authchip Alien Tech Used ----------------- Core Expander Core Reset Matrix Transdimensional Reconstructor Core Cannon Achievements -------------- None Challenges ------------ None Game ------ Seed DispersionFusionClaws Manual? 1 Play Time 08:30:08 Cumulative 286.8 hours Start 2023.06.27 @ 18:33:11 End 2023.07.01 @ 00:00:28 Sessions 17 Manual Loads 0 Difficulty Rogue Special Mode None Game No. 155 Rogue 155 Adventurer 0 Explorer 0 Win Type 3 Total 13 Types 7/0/2/3/0/0/1/0/0 Lore% 80 Gallery% 85 Achievement% 76 Wizard Run 0 Options --------- ASCII 0 Keyboard 1 Movement Arrows Keybinds 0 Fullscreen 2 Font 18/X11 Map View 76x50 Tactical HUD 1 Map Filters NONE Filters NONE Steam 1 RUN: 084ff896-e01b-44f9-963d-6b26742f513d